Publisher Label,Publisher URI,"Supplier ID","Supplier","Invoice No.","Amount (£)","Purpose","Transaction Number","Payment Date","Organisational Unit","Cost Centre(T)","Internal Category Number"
"Wolverhampton City Council","http://opendatacommunities.org/id/metropolitan-district-council/wolverhampton","700220","THE Acme Facilities Group Ltd","IN306973","1,220.00","Equipment - Catering","130197944","08/12/2017","Visitor Economy","Civic Halls - CHIP","R4010"
"Wolverhampton City Council","http://opendatacommunities.org/id/metropolitan-district-council/wolverhampton","700220","THE Acme Facilities Group Ltd","IN305941","639.00","Equipment - Catering","130198695","15/12/2017","Catering","Education Catering - General Overheads","R4010"
"Wolverhampton City Council","http://opendatacommunities.org/id/metropolitan-district-council/wolverhampton","700264","Acorn Environmental Mgt Group Limited","10782","1,416.88","Grounds Maintenance - Contract","130195097","08/12/2017","Environmental Maintenance","Arbor Scheme","R2075"
"Wolverhampton City Council","http://opendatacommunities.org/id/metropolitan-district-council/wolverhampton","700264","Acorn Environmental Mgt Group Limited","10833","1,421.96","Grounds Maintenance - Contract","130196874","08/12/2017","Environmental Maintenance","Arbor Scheme","R2075"
"Wolverhampton City Council","http://opendatacommunities.org/id/metropolitan-district-council/wolverhampton","700341","Acs Business Supplies Limited","SINV00415527","23.98","Stationery","130197031","15/12/2017","Inclusion Support","Inclusion Support","R4308"
"Wolverhampton City Council","http://opendatacommunities.org/id/metropolitan-district-council/wolverhampton","700341","Acs Business Supplies Limited","SINV00415527","32.99","Stationery","130197031","15/12/2017","Inclusion Support","Inclusion Support","R4308"
"Wolverhampton City Council","http://opendatacommunities.org/id/metropolitan-district-council/wolverhampton","700341","Acs Business Supplies Limited","SINV00413763","11.94","Stationery","130195635","06/12/2017","Specialist Support","Upper Pendeford Farm Short Breaks Centre","R4308"
"Wolverhampton City Council","http://opendatacommunities.org/id/metropolitan-district-council/wolverhampton","700341","Acs Business Supplies Limited","SINV00413763","1.96","Stationery","130195635","06/12/2017","Specialist Support","Upper Pendeford Farm Short Breaks Centre","R4308"
"Wolverhampton City Council","http://opendatacommunities.org/id/metropolitan-district-council/wolverhampton","700341","Acs Business Supplies Limited","SINV00413763","3.24","Stationery","130195635","06/12/2017","Specialist Support","Upper Pendeford Farm Short Breaks Centre","R4308"
"Wolverhampton City Council","http://opendatacommunities.org/id/metropolitan-district-council/wolverhampton","700341","Acs Business Supplies Limited","SINV00413763","0.95","Stationery","130195635","06/12/2017","Specialist Support","Upper Pendeford Farm Short Breaks Centre","R4308"
"Wolverhampton City Council","http://opendatacommunities.org/id/metropolitan-district-council/wolverhampton","700341","Acs Business Supplies Limited","SINV00413758","319.37","Stationery","130195630","06/12/2017","Environmental Maintenance","Ground Maintenance West","R4308"
"Wolverhampton City Council","http://opendatacommunities.org/id/metropolitan-district-council/wolverhampton","700341","Acs Business Supplies Limited","SINV00416998","19.74","Stationery","130197948","27/12/2017","Welfare Rights & Financial Assessment","Macmillan Welfare Rights Service","R4308"
"Wolverhampton City Council","http://opendatacommunities.org/id/metropolitan-district-council/wolverhampton","700341","Acs Business Supplies Limited","SINV00417417","107.94","Stationery","130198149","27/12/2017","Strategic Organisation Development","Global Budgets","R4308"
"Wolverhampton City Council","http://opendatacommunities.org/id/metropolitan-district-council/wolverhampton","700341","Acs Business Supplies Limited","SINV00417896","14.26","Stationery","130198162","27/12/2017","Environmental Maintenance","Ground Maintenance West","R4308"
"Wolverhampton City Council","http://opendatacommunities.org/id/metropolitan-district-council/wolverhampton","700341","Acs Business Supplies Limited","SINV00417001","56.97","Stationery","130197951","27/12/2017","Welfare Rights & Financial Assessment","Financial Assessments","R4308"
"Wolverhampton City Council","http://opendatacommunities.org/id/metropolitan-district-council/wolverhampton","700341","Acs Business Supplies Limited","SINV00416448","2.74","Stationery","130197528","20/12/2017","Legal Services","Legal Services","R4308"
"Wolverhampton City Council","http://opendatacommunities.org/id/metropolitan-district-council/wolverhampton","700341","Acs Business Supplies Limited","SINV00416224","159.80","Stationery","130197209","20/12/2017","ICTS","Document Centre - General","R4308"
"Wolverhampton City Council","http://opendatacommunities.org/id/metropolitan-district-council/wolverhampton","700341","Acs Business Supplies Limited","SINV00416444","29.72","Stationery","130197524","20/12/2017","Early Intervention","EIP Locality 5 � Whitmore Reans","R4308"
"Wolverhampton City Council","http://opendatacommunities.org/id/metropolitan-district-council/wolverhampton","700341","Acs Business Supplies Limited","SINV00416444","25.02","Stationery","130197524","20/12/2017","Early Intervention","EIP Locality 5 � Whitmore Reans","R4308"
"Wolverhampton City Council","http://opendatacommunities.org/id/metropolitan-district-council/wolverhampton","700341","Acs Business Supplies Limited","SINV00415140","77.97","Stationery","130196692","13/12/2017","Revenues & Benefits","Revenues","R4308"
"Wolverhampton City Council","http://opendatacommunities.org/id/metropolitan-district-council/wolverhampton","700341","Acs Business Supplies Limited","SINV00414445","28.49","Stationery","130196345","13/12/2017","Looked After Children","Panel Expenses Fostering & Adoption","R4308"
"Wolverhampton City Council","http://opendatacommunities.org/id/metropolitan-district-council/wolverhampton","700341","Acs Business Supplies Limited","SINV00414445","9.02","Stationery","130196345","13/12/2017","Looked After Children","Panel Expenses Fostering & Adoption","R4308"
"Wolverhampton City Council","http://opendatacommunities.org/id/metropolitan-district-council/wolverhampton","700341","Acs Business Supplies Limited","SINV00414577","0.95","Stationery","130196349","13/12/2017","Child Protection","CIN/CP Social Work Unit - Area 3","R4308"
"Wolverhampton City Council","http://opendatacommunities.org/id/metropolitan-district-council/wolverhampton","700341","Acs Business Supplies Limited","SINV00414577","5.86","Stationery","130196349","13/12/2017","Child Protection","CIN/CP Social Work Unit - Area 3","R4308"
"Wolverhampton City Council","http://opendatacommunities.org/id/metropolitan-district-council/wolverhampton","700341","Acs Business Supplies Limited","SINV00414577","9.00","Stationery","130196349","13/12/2017","Child Protection","CIN/CP Social Work Unit - Area 3","R4308"
"Wolverhampton City Council","http://opendatacommunities.org/id/metropolitan-district-council/wolverhampton","700341","Acs Business Supplies Limited","SINV00414577","5.19","Stationery","130196349","13/12/2017","Child Protection","CIN/CP Social Work Unit - Area 3","R4308"
"Wolverhampton City Council","http://opendatacommunities.org/id/metropolitan-district-council/wolverhampton","700341","Acs Business Supplies Limited","SINV00414577","1.50","Stationery","130196349","13/12/2017","Child Protection","CIN/CP Social Work Unit - Area 3","R4308"
"Wolverhampton City Council","http://opendatacommunities.org/id/metropolitan-district-council/wolverhampton","700341","Acs Business Supplies Limited","SINV00414577","34.40","Stationery","130196349","13/12/2017","Child Protection","CIN/CP Social Work Unit - Area 3","R4308"
"Wolverhampton City Council","http://opendatacommunities.org/id/metropolitan-district-council/wolverhampton","700341","Acs Business Supplies Limited","SINV00414577","5.60","Stationery","130196349","13/12/2017","Child Protection","CIN/CP Social Work Unit - Area 3","R4308"
"Wolverhampton City Council","http://opendatacommunities.org/id/metropolitan-district-council/wolverhampton","700341","Acs Business Supplies Limited","SINV00414577","7.13","Stationery","130196349","13/12/2017","Child Protection","CIN/CP Social Work Unit - Area 3","R4308"
"Wolverhampton City Council","http://opendatacommunities.org/id/metropolitan-district-council/wolverhampton","700341","Acs Business Supplies Limited","SINV00414577","32.25","Stationery","130196349","13/12/2017","Child Protection","CIN/CP Social Work Unit - Area 3","R4308"
"Wolverhampton City Council","http://opendatacommunities.org/id/metropolitan-district-council/wolverhampton","700341","Acs Business Supplies Limited","SINV00414577","133.38","Stationery","130196349","13/12/2017","Child Protection","CIN/CP Social Work Unit - Area 3","R4308"
"Wolverhampton City Council","http://opendatacommunities.org/id/metropolitan-district-council/wolverhampton","700341","Acs Business Supplies Limited","SINV00414577","1.47","Stationery","130196349","13/12/2017","Child Protection","CIN/CP Social Work Unit - Area 3","R4308"
"Wolverhampton City Council","http://opendatacommunities.org/id/metropolitan-district-council/wolverhampton","700341","Acs Business Supplies Limited","SINV00415136","88.80","Stationery","130196689","13/12/2017","Headstart","Headstart Hubs","R4308"
"Wolverhampton City Council","http://opendatacommunities.org/id/metropolitan-district-council/wolverhampton","700341","Acs Business Supplies Limited","SINV00415136","119.92","Stationery","130196689","13/12/2017","Headstart","Headstart Hubs","R4308"
"Wolverhampton City Council","http://opendatacommunities.org/id/metropolitan-district-council/wolverhampton","700341","Acs Business Supplies Limited","SINV00416226","17.40","Stationery","130197210","20/12/2017","Democratic Services","Register Office","R4308"
"Wolverhampton City Council","http://opendatacommunities.org/id/metropolitan-district-council/wolverhampton","700341","Acs Business Supplies Limited","SINV00416447","2.04","Stationery","130197527","20/12/2017","Standards and Vulnerable Pupils","SEN Early Years Team","R4308"
"Wolverhampton City Council","http://opendatacommunities.org/id/metropolitan-district-council/wolverhampton","700341","Acs Business Supplies Limited","SINV00416447","1.24","Stationery","130197527","20/12/2017","Standards and Vulnerable Pupils","SEN Early Years Team","R4308"
"Wolverhampton City Council","http://opendatacommunities.org/id/metropolitan-district-council/wolverhampton","700341","Acs Business Supplies Limited","SINV00416447","0.19","Stationery","130197527","20/12/2017","Standards and Vulnerable Pupils","SEN Early Years Team","R4308"
"Wolverhampton City Council","http://opendatacommunities.org/id/metropolitan-district-council/wolverhampton","700341","Acs Business Supplies Limited","SINV00416447","4.05","Stationery","130197527","20/12/2017","Standards and Vulnerable Pupils","SEN Early Years Team","R4308"
"Wolverhampton City Council","http://opendatacommunities.org/id/metropolitan-district-council/wolverhampton","700341","Acs Business Supplies Limited","SINV00416447","1.34","Stationery","130197527","20/12/2017","Standards and Vulnerable Pupils","SEN Early Years Team","R4308"
"Wolverhampton City Council","http://opendatacommunities.org/id/metropolitan-district-council/wolverhampton","700341","Acs Business Supplies Limited","SINV00416447","51.96","Stationery","130197527","20/12/2017","Standards and Vulnerable Pupils","SEN Early Years Team","R4308"
"Wolverhampton City Council","http://opendatacommunities.org/id/metropolitan-district-council/wolverhampton","700341","Acs Business Supplies Limited","SINV00416447","1.92","Stationery","130197527","20/12/2017","Standards and Vulnerable Pupils","SEN Early Years Team","R4308"
"Wolverhampton City Council","http://opendatacommunities.org/id/metropolitan-district-council/wolverhampton","700341","Acs Business Supplies Limited","SINV00416447","29.00","Stationery","130197527","20/12/2017","Standards and Vulnerable Pupils","SEN Early Years Team","R4308"
"Wolverhampton City Council","http://opendatacommunities.org/id/metropolitan-district-council/wolverhampton","700341","Acs Business Supplies Limited","SINV00416447","5.04","Stationery","130197527","20/12/2017","Standards and Vulnerable Pupils","SEN Early Years Team","R4308"
"Wolverhampton City Council","http://opendatacommunities.org/id/metropolitan-district-council/wolverhampton","700341","Acs Business Supplies Limited","SINV00416447","2.69","Stationery","130197527","20/12/2017","Standards and Vulnerable Pupils","SEN Early Years Team","R4308"
"Wolverhampton City Council","http://opendatacommunities.org/id/metropolitan-district-council/wolverhampton","700341","Acs Business Supplies Limited","SINV00416447","3.65","Stationery","130197527","20/12/2017","Standards and Vulnerable Pupils","SEN Early Years Team","R4308"
"Wolverhampton City Council","http://opendatacommunities.org/id/metropolitan-district-council/wolverhampton","700341","Acs Business Supplies Limited","SINV00416447","4.95","Stationery","130197527","20/12/2017","Standards and Vulnerable Pupils","SEN Early Years Team","R4308"
"Wolverhampton City Council","http://opendatacommunities.org/id/metropolitan-district-council/wolverhampton","700341","Acs Business Supplies Limited","SINV00417889","11.69","Stationery","130198155","27/12/2017","Cleaning","Cleaning of Buildings - General","R4308"
"Wolverhampton City Council","http://opendatacommunities.org/id/metropolitan-district-council/wolverhampton","700341","Acs Business Supplies Limited","SINV00417889","48.70","Stationery","130198155","27/12/2017","Cleaning","Cleaning of Buildings - General","R4308"
"Wolverhampton City Council","http://opendatacommunities.org/id/metropolitan-district-council/wolverhampton","700341","Acs Business Supplies Limited","SINV00417889","1.95","Stationery","130198155","27/12/2017","Cleaning","Cleaning of Buildings - General","R4308"
"Wolverhampton City Council","http://opendatacommunities.org/id/metropolitan-district-council/wolverhampton","700341","Acs Business Supplies Limited","SINV00417889","9.75","Stationery","130198155","27/12/2017","Cleaning","Cleaning of Buildings - General","R4308"
"Wolverhampton City Council","http://opendatacommunities.org/id/metropolitan-district-council/wolverhampton","700341","Acs Business Supplies Limited","SINV00417889","2.10","Stationery","130198155","27/12/2017","Cleaning","Cleaning of Buildings - General","R4308"
"Wolverhampton City Council","http://opendatacommunities.org/id/metropolitan-district-council/wolverhampton","700341","Acs Business Supplies Limited","SINV00417000","10.72","Stationery","130197950","27/12/2017","Central Corporate Budgets","Miscellaneous Corporate Costs","R4308"
"Wolverhampton City Council","http://opendatacommunities.org/id/metropolitan-district-council/wolverhampton","700341","Acs Business Supplies Limited","SINV00417420","289.98","Stationery","130198152","27/12/2017","Independent Living Service","Independent Living Service","R4308"
"Wolverhampton City Council","http://opendatacommunities.org/id/metropolitan-district-council/wolverhampton","700341","Acs Business Supplies Limited","SINV00417419","0.40","Stationery","130198151","27/12/2017","Strategic Director Place","Business Manager - Place","R4308"
"Wolverhampton City Council","http://opendatacommunities.org/id/metropolitan-district-council/wolverhampton","700341","Acs Business Supplies Limited","SINV00417419","1.00","Stationery","130198151","27/12/2017","Strategic Director Place","Business Manager - Place","R4308"
"Wolverhampton City Council","http://opendatacommunities.org/id/metropolitan-district-council/wolverhampton","700341","Acs Business Supplies Limited","SINV00417419","0.80","Stationery","130198151","27/12/2017","Strategic Director Place","Business Manager - Place","R4308"
"Wolverhampton City Council","http://opendatacommunities.org/id/metropolitan-district-council/wolverhampton","700341","Acs Business Supplies Limited","SINV00417419","1.37","Stationery","130198151","27/12/2017","Strategic Director Place","Business Manager - Place","R4308"
"Wolverhampton City Council","http://opendatacommunities.org/id/metropolitan-district-council/wolverhampton","700341","Acs Business Supplies Limited","SINV00417419","2.13","Stationery","130198151","27/12/2017","Strategic Director Place","Business Manager - Place","R4308"
"Wolverhampton City Council","http://opendatacommunities.org/id/metropolitan-district-council/wolverhampton","700341","Acs Business Supplies Limited","SINV00417419","2.88","Stationery","130198151","27/12/2017","Strategic Director Place","Business Manager - Place","R4308"
"Wolverhampton City Council","http://opendatacommunities.org/id/metropolitan-district-council/wolverhampton","700341","Acs Business Supplies Limited","SINV00417419","4.95","Stationery","130198151","27/12/2017","Strategic Director Place","Business Manager - Place","R4308"
"Wolverhampton City Council","http://opendatacommunities.org/id/metropolitan-district-council/wolverhampton","700341","Acs Business Supplies Limited","SINV00417419","1.16","Stationery","130198151","27/12/2017","Strategic Director Place","Business Manager - Place","R4308"
"Wolverhampton City Council","http://opendatacommunities.org/id/metropolitan-district-council/wolverhampton","700341","Acs Business Supplies Limited","SINV00417419","8.99","Stationery","130198151","27/12/2017","Strategic Director Place","Business Manager - Place","R4308"
"Wolverhampton City Council","http://opendatacommunities.org/id/metropolitan-district-council/wolverhampton","700341","Acs Business Supplies Limited","SINV00417419","6.85","Stationery","130198151","27/12/2017","Strategic Director Place","Business Manager - Place","R4308"
"Wolverhampton City Council","http://opendatacommunities.org/id/metropolitan-district-council/wolverhampton","700341","Acs Business Supplies Limited","SINV00417419","6.77","Stationery","130198151","27/12/2017","Strategic Director Place","Business Manager - Place","R4308"
"Wolverhampton City Council","http://opendatacommunities.org/id/metropolitan-district-council/wolverhampton","700341","Acs Business Supplies Limited","SINV00417419","14.99","Stationery","130198151","27/12/2017","Strategic Director Place","Business Manager - Place","R4308"
"Wolverhampton City Council","http://opendatacommunities.org/id/metropolitan-district-council/wolverhampton","700341","Acs Business Supplies Limited","SINV00415526","16.30","Stationery","130197030","15/12/2017","Fleet Services","Fleet Management","R4308"
"Wolverhampton City Council","http://opendatacommunities.org/id/metropolitan-district-council/wolverhampton","700341","Acs Business Supplies Limited","SINV00413759","3.36","Stationery","130195631","06/12/2017","Adult Education","Service Wide","R4308"
"Wolverhampton City Council","http://opendatacommunities.org/id/metropolitan-district-council/wolverhampton","700341","Acs Business Supplies Limited","SINV00413759","3.24","Stationery","130195631","06/12/2017","Adult Education","Service Wide","R4308"
"Wolverhampton City Council","http://opendatacommunities.org/id/metropolitan-district-council/wolverhampton","700341","Acs Business Supplies Limited","SINV00413759","18.10","Stationery","130195631","06/12/2017","Adult Education","Service Wide","R4308"
"Wolverhampton City Council","http://opendatacommunities.org/id/metropolitan-district-council/wolverhampton","700341","Acs Business Supplies Limited","SINV00413759","36.00","Stationery","130195631","06/12/2017","Adult Education","Service Wide","R4308"
"Wolverhampton City Council","http://opendatacommunities.org/id/metropolitan-district-council/wolverhampton","700341","Acs Business Supplies Limited","SINV00413948","129.00","Stationery","130195834","06/12/2017","Child Protection","CIN/CP Social Work Unit - Area 3","R4308"
"Wolverhampton City Council","http://opendatacommunities.org/id/metropolitan-district-council/wolverhampton","700341","Acs Business Supplies Limited","SINV00413948","2.24","Stationery","130195834","06/12/2017","Child Protection","CIN/CP Social Work Unit - Area 3","R4308"
"Wolverhampton City Council","http://opendatacommunities.org/id/metropolitan-district-council/wolverhampton","700341","Acs Business Supplies Limited","SINV00413948","0.75","Stationery","130195834","06/12/2017","Child Protection","CIN/CP Social Work Unit - Area 3","R4308"
"Wolverhampton City Council","http://opendatacommunities.org/id/metropolitan-district-council/wolverhampton","700341","Acs Business Supplies Limited","SINV00413948","2.88","Stationery","130195834","06/12/2017","Child Protection","CIN/CP Social Work Unit - Area 3","R4308"
"Wolverhampton City Council","http://opendatacommunities.org/id/metropolitan-district-council/wolverhampton","700341","Acs Business Supplies Limited","SINV00415142","77.34","Stationery","130196694","13/12/2017","Facilities Management","i10 Facilities Management","R4308"
"Wolverhampton City Council","http://opendatacommunities.org/id/metropolitan-district-council/wolverhampton","700341","Acs Business Supplies Limited","SINV00415133","8.79","Stationery","130196686","13/12/2017","Safeguarding","Head of Service Quality and Safeguarding","R4308"
"Wolverhampton City Council","http://opendatacommunities.org/id/metropolitan-district-council/wolverhampton","700341","Acs Business Supplies Limited","SINV00415133","14.26","Stationery","130196686","13/12/2017","Safeguarding","Head of Service Quality and Safeguarding","R4308"
"Wolverhampton City Council","http://opendatacommunities.org/id/metropolitan-district-council/wolverhampton","700341","Acs Business Supplies Limited","SINV00415133","0.98","Stationery","130196686","13/12/2017","Safeguarding","Head of Service Quality and Safeguarding","R4308"
"Wolverhampton City Council","http://opendatacommunities.org/id/metropolitan-district-council/wolverhampton","700341","Acs Business Supplies Limited","SINV00415133","1.42","Stationery","130196686","13/12/2017","Safeguarding","Head of Service Quality and Safeguarding","R4308"
"Wolverhampton City Council","http://opendatacommunities.org/id/metropolitan-district-council/wolverhampton","700341","Acs Business Supplies Limited","SINV00415133","2.88","Stationery","130196686","13/12/2017","Safeguarding","Head of Service Quality and Safeguarding","R4308"
"Wolverhampton City Council","http://opendatacommunities.org/id/metropolitan-district-council/wolverhampton","700341","Acs Business Supplies Limited","SINV00415133","1.92","Stationery","130196686","13/12/2017","Safeguarding","Head of Service Quality and Safeguarding","R4308"
"Wolverhampton City Council","http://opendatacommunities.org/id/metropolitan-district-council/wolverhampton","700341","Acs Business Supplies Limited","SINV00415133","12.66","Stationery","130196686","13/12/2017","Safeguarding","Head of Service Quality and Safeguarding","R4308"
"Wolverhampton City Council","http://opendatacommunities.org/id/metropolitan-district-council/wolverhampton","700341","Acs Business Supplies Limited","SINV00415133","0.19","Stationery","130196686","13/12/2017","Safeguarding","Head of Service Quality and Safeguarding","R4308"
"Wolverhampton City Council","http://opendatacommunities.org/id/metropolitan-district-council/wolverhampton","700341","Acs Business Supplies Limited","SINV00415133","0.42","Stationery","130196686","13/12/2017","Safeguarding","Head of Service Quality and Safeguarding","R4308"
"Wolverhampton City Council","http://opendatacommunities.org/id/metropolitan-district-council/wolverhampton","700341","Acs Business Supplies Limited","SINV00415133","2.27","Stationery","130196686","13/12/2017","Safeguarding","Head of Service Quality and Safeguarding","R4308"
"Wolverhampton City Council","http://opendatacommunities.org/id/metropolitan-district-council/wolverhampton","700341","Acs Business Supplies Limited","SINV00415133","14.50","Stationery","130196686","13/12/2017","Safeguarding","Head of Service Quality and Safeguarding","R4308"
"Wolverhampton City Council","http://opendatacommunities.org/id/metropolitan-district-council/wolverhampton","700341","Acs Business Supplies Limited","SINV00414446","47.88","Stationery","130196346","13/12/2017","Inclusion Support","Inclusion Support","R4308"
"Wolverhampton City Council","http://opendatacommunities.org/id/metropolitan-district-council/wolverhampton","700341","Acs Business Supplies Limited","SINV00415132","121.58","Stationery","130196685","13/12/2017","Central Corporate Budgets","Miscellaneous Corporate Costs","R4308"
"Wolverhampton City Council","http://opendatacommunities.org/id/metropolitan-district-council/wolverhampton","700341","Acs Business Supplies Limited","SINV00416445","22.68","Stationery","130197525","20/12/2017","Legal Services","Legal Services","R4308"
"Wolverhampton City Council","http://opendatacommunities.org/id/metropolitan-district-council/wolverhampton","700341","Acs Business Supplies Limited","SINV00410169","169.20","Stationery","130199156","20/12/2017","Customer Services","City Direct","R4308"
"Wolverhampton City Council","http://opendatacommunities.org/id/metropolitan-district-council/wolverhampton","700341","Acs Business Supplies Limited","SINV00415134","37.28","Stationery","130196687","13/12/2017","Adult Education","Language Studies Delivery Area","R4308"
"Wolverhampton City Council","http://opendatacommunities.org/id/metropolitan-district-council/wolverhampton","700341","Acs Business Supplies Limited","SINV00415141","0.99","Stationery","130196693","13/12/2017","Headstart","Headstart Phase 3","R4308"
"Wolverhampton City Council","http://opendatacommunities.org/id/metropolitan-district-council/wolverhampton","700341","Acs Business Supplies Limited","SINV00415141","1.50","Stationery","130196693","13/12/2017","Headstart","Headstart Phase 3","R4308"
"Wolverhampton City Council","http://opendatacommunities.org/id/metropolitan-district-council/wolverhampton","700341","Acs Business Supplies Limited","SINV00415141","3.70","Stationery","130196693","13/12/2017","Headstart","Headstart Phase 3","R4308"
"Wolverhampton City Council","http://opendatacommunities.org/id/metropolitan-district-council/wolverhampton","700341","Acs Business Supplies Limited","SINV00415141","1.00","Stationery","130196693","13/12/2017","Headstart","Headstart Phase 3","R4308"
"Wolverhampton City Council","http://opendatacommunities.org/id/metropolitan-district-council/wolverhampton","700341","Acs Business Supplies Limited","SINV00415141","3.55","Stationery","130196693","13/12/2017","Headstart","Headstart Phase 3","R4308"
"Wolverhampton City Council","http://opendatacommunities.org/id/metropolitan-district-council/wolverhampton","700341","Acs Business Supplies Limited","SINV00415141","12.40","Stationery","130196693","13/12/2017","Headstart","Headstart Phase 3","R4308"
"Wolverhampton City Council","http://opendatacommunities.org/id/metropolitan-district-council/wolverhampton","700341","Acs Business Supplies Limited","SINV00415141","15.75","Stationery","130196693","13/12/2017","Headstart","Headstart Phase 3","R4308"
"Wolverhampton City Council","http://opendatacommunities.org/id/metropolitan-district-council/wolverhampton","700341","Acs Business Supplies Limited","SINV00415141","5.78","Stationery","130196693","13/12/2017","Headstart","Headstart Phase 3","R4308"
"Wolverhampton City Council","http://opendatacommunities.org/id/metropolitan-district-council/wolverhampton","700341","Acs Business Supplies Limited","SINV00415141","49.40","Stationery","130196693","13/12/2017","Headstart","Headstart Phase 3","R4308"
"Wolverhampton City Council","http://opendatacommunities.org/id/metropolitan-district-council/wolverhampton","700341","Acs Business Supplies Limited","SINV00415141","19.35","Stationery","130196693","13/12/2017","Headstart","Headstart Phase 3","R4308"
"Wolverhampton City Council","http://opendatacommunities.org/id/metropolitan-district-council/wolverhampton","700341","Acs Business Supplies Limited","SINV00415141","74.25","Stationery","130196693","13/12/2017","Headstart","Headstart Phase 3","R4308"
"Wolverhampton City Council","http://opendatacommunities.org/id/metropolitan-district-council/wolverhampton","700341","Acs Business Supplies Limited","SINV00415141","20.02","Stationery","130196693","13/12/2017","Headstart","Headstart Phase 3","R4308"
"Wolverhampton City Council","http://opendatacommunities.org/id/metropolitan-district-council/wolverhampton","700341","Acs Business Supplies Limited","SINV00415141","9.95","Stationery","130196693","13/12/2017","Headstart","Headstart Phase 3","R4308"
"Wolverhampton City Council","http://opendatacommunities.org/id/metropolitan-district-council/wolverhampton","700341","Acs Business Supplies Limited","SINV00415524","9.00","Stationery","130197028","15/12/2017","Democratic Services","Register Office","R4308"
"Wolverhampton City Council","http://opendatacommunities.org/id/metropolitan-district-council/wolverhampton","700341","Acs Business Supplies Limited","SINV00418161","72.50","Stationery","130198511","27/12/2017","Adult Education","Service Wide","R4308"
"Wolverhampton City Council","http://opendatacommunities.org/id/metropolitan-district-council/wolverhampton","700341","Acs Business Supplies Limited","SINV00416997","36.36","Stationery","130197947","27/12/2017","Legal Services","Legal Services","R4308"
"Wolverhampton City Council","http://opendatacommunities.org/id/metropolitan-district-council/wolverhampton","700341","Acs Business Supplies Limited","SINV00416997","64.95","Stationery","130197947","27/12/2017","Legal Services","Legal Services","R4308"
"Wolverhampton City Council","http://opendatacommunities.org/id/metropolitan-district-council/wolverhampton","700341","Acs Business Supplies Limited","SINV00416997","78.48","Stationery","130197947","27/12/2017","Legal Services","Legal Services","R4308"
"Wolverhampton City Council","http://opendatacommunities.org/id/metropolitan-district-council/wolverhampton","700341","Acs Business Supplies Limited","SINV00416997","44.97","Stationery","130197947","27/12/2017","Legal Services","Legal Services","R4308"
"Wolverhampton City Council","http://opendatacommunities.org/id/metropolitan-district-council/wolverhampton","700341","Acs Business Supplies Limited","SINV00417891","38.96","Stationery","130198157","27/12/2017","Environmental Maintenance","Street Cleansing Overheads","R4308"
"Wolverhampton City Council","http://opendatacommunities.org/id/metropolitan-district-council/wolverhampton","700341","Acs Business Supplies Limited","SINV00417895","152.75","Stationery","130198161","27/12/2017","Youth Offending","Youth Offending Team","R4308"
"Wolverhampton City Council","http://opendatacommunities.org/id/metropolitan-district-council/wolverhampton","700341","Acs Business Supplies Limited","SINV00417897","6.81","Stationery","130198163","27/12/2017","Highways Maintenance","Patching","R4308"
"Wolverhampton City Council","http://opendatacommunities.org/id/metropolitan-district-council/wolverhampton","700341","Acs Business Supplies Limited","SCRN00049550","-13.01","Stationery","130189077","13/12/2017","Child Protection","CIN/CP Social Work Unit - Area 4","R4308"
"Wolverhampton City Council","http://opendatacommunities.org/id/metropolitan-district-council/wolverhampton","700341","Acs Business Supplies Limited","SINV00413764","4.55","Stationery","130195636","06/12/2017","Strategic Director Place","Business Manager - Place","R4308"
"Wolverhampton City Council","http://opendatacommunities.org/id/metropolitan-district-council/wolverhampton","700341","Acs Business Supplies Limited","SINV00413761","78.68","Stationery","130195633","06/12/2017","Child Protection","CIN/CP Social Work Unit - Area 2","R4308"
"Wolverhampton City Council","http://opendatacommunities.org/id/metropolitan-district-council/wolverhampton","700341","Acs Business Supplies Limited","SINV00411969","19.86","Stationery","130194552","06/12/2017","Highways Maintenance","Patching","R4308"
"Wolverhampton City Council","http://opendatacommunities.org/id/metropolitan-district-council/wolverhampton","700341","Acs Business Supplies Limited","SINV00411969","15.69","Stationery","130194552","06/12/2017","Highways Maintenance","Planned Highways Maintenance","R4308"
"Wolverhampton City Council","http://opendatacommunities.org/id/metropolitan-district-council/wolverhampton","700341","Acs Business Supplies Limited","SINV00414447","18.10","Stationery","130196347","13/12/2017","Democratic Services","Register Office","R4308"
"Wolverhampton City Council","http://opendatacommunities.org/id/metropolitan-district-council/wolverhampton","700341","Acs Business Supplies Limited","SINV00416449","18.82","Stationery","130197529","20/12/2017","Visitor Economy","Box Office Administration","R4308"
"Wolverhampton City Council","http://opendatacommunities.org/id/metropolitan-district-council/wolverhampton","700341","Acs Business Supplies Limited","SINV00416449","6.45","Stationery","130197529","20/12/2017","Visitor Economy","Box Office Administration","R4308"
"Wolverhampton City Council","http://opendatacommunities.org/id/metropolitan-district-council/wolverhampton","700341","Acs Business Supplies Limited","SINV00416446","29.64","Stationery","130197526","20/12/2017","Markets","Bilston Market and Licensed Operations","R4308"
"Wolverhampton City Council","http://opendatacommunities.org/id/metropolitan-district-council/wolverhampton","700341","Acs Business Supplies Limited","SINV00416446","21.27","Stationery","130197526","20/12/2017","Markets","Bilston Market and Licensed Operations","R4308"
"Wolverhampton City Council","http://opendatacommunities.org/id/metropolitan-district-council/wolverhampton","700341","Acs Business Supplies Limited","SINV00416446","2.60","Stationery","130197526","20/12/2017","Markets","Bilston Market and Licensed Operations","R4308"
"Wolverhampton City Council","http://opendatacommunities.org/id/metropolitan-district-council/wolverhampton","700341","Acs Business Supplies Limited","SINV00416446","0.66","Stationery","130197526","20/12/2017","Markets","Bilston Market and Licensed Operations","R4308"
"Wolverhampton City Council","http://opendatacommunities.org/id/metropolitan-district-council/wolverhampton","700341","Acs Business Supplies Limited","SINV00416446","13.70","Stationery","130197526","20/12/2017","Markets","Bilston Market and Licensed Operations","R4308"
"Wolverhampton City Council","http://opendatacommunities.org/id/metropolitan-district-council/wolverhampton","700341","Acs Business Supplies Limited","SCRN00050869","-25.98","Stationery","130197945","13/12/2017","Adult Education","Service Wide","R4308"
"Wolverhampton City Council","http://opendatacommunities.org/id/metropolitan-district-council/wolverhampton","700341","Acs Business Supplies Limited","SINV00415139","13.41","Stationery","130196691","13/12/2017","Older People Provider Services","Reablement Team","R4308"
"Wolverhampton City Council","http://opendatacommunities.org/id/metropolitan-district-council/wolverhampton","700341","Acs Business Supplies Limited","SINV00415139","1.40","Stationery","130196691","13/12/2017","Older People Provider Services","Reablement Team","R4308"
"Wolverhampton City Council","http://opendatacommunities.org/id/metropolitan-district-council/wolverhampton","700341","Acs Business Supplies Limited","SINV00415139","56.46","Stationery","130196691","13/12/2017","Older People Provider Services","Reablement Team","R4308"
"Wolverhampton City Council","http://opendatacommunities.org/id/metropolitan-district-council/wolverhampton","700341","Acs Business Supplies Limited","SINV00415139","14.48","Stationery","130196691","13/12/2017","Older People Provider Services","Reablement Team","R4308"
"Wolverhampton City Council","http://opendatacommunities.org/id/metropolitan-district-council/wolverhampton","700341","Acs Business Supplies Limited","SINV00414444","35.10","Stationery","130196344","13/12/2017","Welfare Rights & Financial Assessment","Welfare Rights","R4308"
"Wolverhampton City Council","http://opendatacommunities.org/id/metropolitan-district-council/wolverhampton","700341","Acs Business Supplies Limited","SINV00415343","43.50","Stationery","130196875","13/12/2017","Human Resources","Newly Qualified Social Workers","R4308"
"Wolverhampton City Council","http://opendatacommunities.org/id/metropolitan-district-council/wolverhampton","700341","Acs Business Supplies Limited","SINV00415343","1.65","Stationery","130196875","13/12/2017","Human Resources","Newly Qualified Social Workers","R4308"
"Wolverhampton City Council","http://opendatacommunities.org/id/metropolitan-district-council/wolverhampton","700341","Acs Business Supplies Limited","SINV00390756","76.41","Stationery","130199432","28/12/2017","Catering","Education Catering - General Overheads","R4308"
"Wolverhampton City Council","http://opendatacommunities.org/id/metropolitan-district-council/wolverhampton","700341","Acs Business Supplies Limited","SINV00390756","26.96","Stationery","130199432","28/12/2017","Cleaning","Cleaning of Buildings - General","R4308"
"Wolverhampton City Council","http://opendatacommunities.org/id/metropolitan-district-council/wolverhampton","700341","Acs Business Supplies Limited","SINV00415525","69.49","Stationery","130197029","15/12/2017","Welfare Rights & Financial Assessment","Macmillan Welfare Rights Service","R4308"
"Wolverhampton City Council","http://opendatacommunities.org/id/metropolitan-district-council/wolverhampton","700341","Acs Business Supplies Limited","SINV00415525","6.33","Stationery","130197029","15/12/2017","Welfare Rights & Financial Assessment","Macmillan Welfare Rights Service","R4308"
"Wolverhampton City Council","http://opendatacommunities.org/id/metropolitan-district-council/wolverhampton","700341","Acs Business Supplies Limited","SINV00413762","59.98","Stationery","130195634","06/12/2017","Looked After Children","Looked After Team 1","R4308"
"Wolverhampton City Council","http://opendatacommunities.org/id/metropolitan-district-council/wolverhampton","700341","Acs Business Supplies Limited","SINV00413760","25.32","Stationery","130195632","06/12/2017","Bereavement Services","Cemeteries","R4308"
"Wolverhampton City Council","http://opendatacommunities.org/id/metropolitan-district-council/wolverhampton","700341","Acs Business Supplies Limited","SINV00417418","14.89","Stationery","130198150","27/12/2017","Landscape","Landscape","R4308"
"Wolverhampton City Council","http://opendatacommunities.org/id/metropolitan-district-council/wolverhampton","700341","Acs Business Supplies Limited","SINV00418160","116.68","Stationery","130198510","27/12/2017","Customer Services","City Direct","R4308"
"Wolverhampton City Council","http://opendatacommunities.org/id/metropolitan-district-council/wolverhampton","700341","Acs Business Supplies Limited","SINV00416999","34.99","Stationery","130197949","27/12/2017","Welfare Rights & Financial Assessment","Financial Assessments","R4308"
"Wolverhampton City Council","http://opendatacommunities.org/id/metropolitan-district-council/wolverhampton","700341","Acs Business Supplies Limited","SINV00417422","22.80","Stationery","130198154","27/12/2017","Safeguarding","Head of Service Quality and Safeguarding","R4308"
"Wolverhampton City Council","http://opendatacommunities.org/id/metropolitan-district-council/wolverhampton","700341","Acs Business Supplies Limited","SINV00417422","35.84","Stationery","130198154","27/12/2017","Safeguarding","Head of Service Quality and Safeguarding","R4308"
"Wolverhampton City Council","http://opendatacommunities.org/id/metropolitan-district-council/wolverhampton","700341","Acs Business Supplies Limited","SINV00418159","212.70","Stationery","130198509","27/12/2017","Legal Services","Legal Services","R4308"
"Wolverhampton City Council","http://opendatacommunities.org/id/metropolitan-district-council/wolverhampton","700341","Acs Business Supplies Limited","SINV00415137","3.87","Stationery","130196690","13/12/2017","Parking Services","Parking Enforcement","R4308"
"Wolverhampton City Council","http://opendatacommunities.org/id/metropolitan-district-council/wolverhampton","700341","Acs Business Supplies Limited","SINV00415137","8.16","Stationery","130196690","13/12/2017","Parking Services","Parking Enforcement","R4308"
"Wolverhampton City Council","http://opendatacommunities.org/id/metropolitan-district-council/wolverhampton","700341","Acs Business Supplies Limited","SINV00415137","3.96","Stationery","130196690","13/12/2017","Parking Services","Parking Enforcement","R4308"
"Wolverhampton City Council","http://opendatacommunities.org/id/metropolitan-district-council/wolverhampton","700341","Acs Business Supplies Limited","SINV00415137","2.57","Stationery","130196690","13/12/2017","Parking Services","Parking Enforcement","R4308"
"Wolverhampton City Council","http://opendatacommunities.org/id/metropolitan-district-council/wolverhampton","700341","Acs Business Supplies Limited","SINV00415137","1.62","Stationery","130196690","13/12/2017","Parking Services","Parking Enforcement","R4308"
"Wolverhampton City Council","http://opendatacommunities.org/id/metropolitan-district-council/wolverhampton","700341","Acs Business Supplies Limited","SINV00415137","5.64","Stationery","130196690","13/12/2017","Parking Services","Parking Enforcement","R4308"
"Wolverhampton City Council","http://opendatacommunities.org/id/metropolitan-district-council/wolverhampton","700341","Acs Business Supplies Limited","SINV00415137","37.32","Stationery","130196690","13/12/2017","Parking Services","Parking Enforcement","R4308"
"Wolverhampton City Council","http://opendatacommunities.org/id/metropolitan-district-council/wolverhampton","700341","Acs Business Supplies Limited","SINV00415137","1.37","Stationery","130196690","13/12/2017","Parking Services","Parking Enforcement","R4308"
"Wolverhampton City Council","http://opendatacommunities.org/id/metropolitan-district-council/wolverhampton","700341","Acs Business Supplies Limited","SINV00415137","25.98","Stationery","130196690","13/12/2017","Parking Services","Parking Enforcement","R4308"
"Wolverhampton City Council","http://opendatacommunities.org/id/metropolitan-district-council/wolverhampton","700341","Acs Business Supplies Limited","SINV00415137","64.38","Stationery","130196690","13/12/2017","Parking Services","Parking Enforcement","R4308"
"Wolverhampton City Council","http://opendatacommunities.org/id/metropolitan-district-council/wolverhampton","700341","Acs Business Supplies Limited","SINV00415137","2.13","Stationery","130196690","13/12/2017","Parking Services","Parking Enforcement","R4308"
"Wolverhampton City Council","http://opendatacommunities.org/id/metropolitan-district-council/wolverhampton","700341","Acs Business Supplies Limited","SINV00415137","7.60","Stationery","130196690","13/12/2017","Parking Services","Parking Enforcement","R4308"
"Wolverhampton City Council","http://opendatacommunities.org/id/metropolitan-district-council/wolverhampton","700341","Acs Business Supplies Limited","SINV00415137","0.71","Stationery","130196690","13/12/2017","Parking Services","Parking Enforcement","R4308"
"Wolverhampton City Council","http://opendatacommunities.org/id/metropolitan-district-council/wolverhampton","700341","Acs Business Supplies Limited","SINV00415137","0.37","Stationery","130196690","13/12/2017","Parking Services","Parking Enforcement","R4308"
"Wolverhampton City Council","http://opendatacommunities.org/id/metropolitan-district-council/wolverhampton","700341","Acs Business Supplies Limited","SINV00415137","0.96","Stationery","130196690","13/12/2017","Parking Services","Parking Enforcement","R4308"
"Wolverhampton City Council","http://opendatacommunities.org/id/metropolitan-district-council/wolverhampton","700341","Acs Business Supplies Limited","SINV00415137","3.99","Stationery","130196690","13/12/2017","Parking Services","Parking Enforcement","R4308"
"Wolverhampton City Council","http://opendatacommunities.org/id/metropolitan-district-council/wolverhampton","700363","Act Now Training Limited","21916","299.00","Training Expenses","130197742","27/12/2017","Human Resources","Centralised Training","R1650"
"Wolverhampton City Council","http://opendatacommunities.org/id/metropolitan-district-council/wolverhampton","700539","Activities 4 U","03303","60.00","Services - Supplies and Services to service users","130190609","01/12/2017","Older People Provider Services","Bradley Lodge Resource Centre","R4408"
"Wolverhampton City Council","http://opendatacommunities.org/id/metropolitan-district-council/wolverhampton","700539","Activities 4 U","03303","-60.00","Services - Supplies and Services to service users","130190609","01/12/2017","Older People Provider Services","Bradley Lodge Resource Centre","R4408"
"Wolverhampton City Council","http://opendatacommunities.org/id/metropolitan-district-council/wolverhampton","700539","Activities 4 U","03303","60.00","Services - Supplies and Services to service users","130190609","01/12/2017","Older People Provider Services","Bradley Lodge Resource Centre","R4408"
"Wolverhampton City Council","http://opendatacommunities.org/id/metropolitan-district-council/wolverhampton","700539","Activities 4 U","03314","30.00","Services - Supplies and Services to service users","130198515","27/12/2017","Older People Provider Services","Bradley Lodge Resource Centre","R4408"
"Wolverhampton City Council","http://opendatacommunities.org/id/metropolitan-district-council/wolverhampton","700604","P Kitterick","00034","520.00","TPP - Maintenance Contractor - General","190398581","01/12/2017","Transportation","Cycling Schemes - Bikeability","R5720"
"Wolverhampton City Council","http://opendatacommunities.org/id/metropolitan-district-council/wolverhampton","700684","Philip Lay","22","360.00","TPP - Maintenance Contractor - General","190398578","01/12/2017","Transportation","Cycling Schemes - Bikeability","R5720"
"Wolverhampton City Council","http://opendatacommunities.org/id/metropolitan-district-council/wolverhampton","700761","R Millard","000045","20.00","Services - Professional Fees","190404391","20/12/2017","Transportation","Advisory Road Markings and Disabled Bays","R4400"
"Wolverhampton City Council","http://opendatacommunities.org/id/metropolitan-district-council/wolverhampton","700761","R Millard","000044/1","22.50","TPP - Maintenance Contractor - General","190398577","01/12/2017","Transportation","Cycling Schemes - Bikeability","R5720"
"Wolverhampton City Council","http://opendatacommunities.org/id/metropolitan-district-council/wolverhampton","700761","R Millard","000044","97.50","Services - Professional Fees","190398576","01/12/2017","Transportation","Advisory Road Markings and Disabled Bays","R4400"
"Wolverhampton City Council","http://opendatacommunities.org/id/metropolitan-district-council/wolverhampton","700762","R Millington","00036","320.00","TPP - Maintenance Contractor - General","190398569","01/12/2017","Transportation","Cycling Schemes - Bikeability","R5720"
"Wolverhampton City Council","http://opendatacommunities.org/id/metropolitan-district-council/wolverhampton","700770","Adt Fire And Security PLC","36899767-02","87.57","Services - Security","130197952","08/12/2017","Facilities Management","Caretakers Community Centre","R4405"
"Wolverhampton City Council","http://opendatacommunities.org/id/metropolitan-district-council/wolverhampton","700770","Adt Fire And Security PLC","36794969-02","222.00","Fixtures and Fittings - R&M","130197034","01/12/2017","Facilities Management","Caretakers Community Centre","R2502"
"Wolverhampton City Council","http://opendatacommunities.org/id/metropolitan-district-council/wolverhampton","700887","S Drew","00011","80.00","Services - Professional Fees","190404392","20/12/2017","Transportation","Advisory Road Markings and Disabled Bays","R4400"
"Wolverhampton City Council","http://opendatacommunities.org/id/metropolitan-district-council/wolverhampton","700979","Af Blakemore/Blakemore Foodservice","WCC000319","801.12","Provisions (Not for resale)","130196357","13/12/2017","Leisure Services","Bert Williams Leisure Centre Caf�","R4101"
"Wolverhampton City Council","http://opendatacommunities.org/id/metropolitan-district-council/wolverhampton","700979","Af Blakemore/Blakemore Foodservice","WCC000319","581.41","Provisions (Not for resale)","130196357","13/12/2017","Leisure Services","Bert Williams Leisure Centre Caf�","R4101"
"Wolverhampton City Council","http://opendatacommunities.org/id/metropolitan-district-council/wolverhampton","700979","Af Blakemore/Blakemore Foodservice","WCC000324","78,968.19","Provisions (Resale)","130197531","27/12/2017","Catering","Education Catering - General Overheads","R4102"
"Wolverhampton City Council","http://opendatacommunities.org/id/metropolitan-district-council/wolverhampton","700979","Af Blakemore/Blakemore Foodservice","WCC000324","-78,968.19","Provisions (Resale)","130197531","27/12/2017","Catering","Education Catering - General Overheads","R4102"
"Wolverhampton City Council","http://opendatacommunities.org/id/metropolitan-district-council/wolverhampton","700979","Af Blakemore/Blakemore Foodservice","WCC000324","77,429.84","Provisions (Resale)","130197531","27/12/2017","Catering","Education Catering - General Overheads","R4102"
"Wolverhampton City Council","http://opendatacommunities.org/id/metropolitan-district-council/wolverhampton","700979","Af Blakemore/Blakemore Foodservice","WCC000329","564.15","Provisions (Resale)","130197534","27/12/2017","Catering","Meals on Wheels","R4102"
"Wolverhampton City Council","http://opendatacommunities.org/id/metropolitan-district-council/wolverhampton","700979","Af Blakemore/Blakemore Foodservice","WCC000329","-564.15","Provisions (Resale)","130197534","27/12/2017","Catering","Meals on Wheels","R4102"
"Wolverhampton City Council","http://opendatacommunities.org/id/metropolitan-district-council/wolverhampton","700979","Af Blakemore/Blakemore Foodservice","WCC000329","545.52","Provisions (Resale)","130197534","27/12/2017","Catering","Meals on Wheels","R4102"
"Wolverhampton City Council","http://opendatacommunities.org/id/metropolitan-district-council/wolverhampton","700979","Af Blakemore/Blakemore Foodservice","WCC000329","18.63","Provisions (Resale)","130197534","27/12/2017","Catering","Meals on Wheels","R4102"
"Wolverhampton City Council","http://opendatacommunities.org/id/metropolitan-district-council/wolverhampton","700979","Af Blakemore/Blakemore Foodservice","WCC000324","1,538.35","Provisions (Resale)","130197531","27/12/2017","Catering","Education Catering - General Overheads","R4102"
"Wolverhampton City Council","http://opendatacommunities.org/id/metropolitan-district-council/wolverhampton","700979","Af Blakemore/Blakemore Foodservice","5685961","5.34","Provisions (Resale)","130196353","06/12/2017","Adult Education","Caf�","R4102"
"Wolverhampton City Council","http://opendatacommunities.org/id/metropolitan-district-council/wolverhampton","700979","Af Blakemore/Blakemore Foodservice","5620795","290.51","Provisions (Resale)","130195841","06/12/2017","Older People Provider Services","Bradley Lodge Resource Centre","R4102"
"Wolverhampton City Council","http://opendatacommunities.org/id/metropolitan-district-council/wolverhampton","700979","Af Blakemore/Blakemore Foodservice","5620795","-290.51","Provisions (Resale)","130195841","06/12/2017","Older People Provider Services","Bradley Lodge Resource Centre","R4102"
"Wolverhampton City Council","http://opendatacommunities.org/id/metropolitan-district-council/wolverhampton","700979","Af Blakemore/Blakemore Foodservice","5620795","262.21","Provisions (Resale)","130195841","06/12/2017","Older People Provider Services","Bradley Lodge Resource Centre","R4102"
"Wolverhampton City Council","http://opendatacommunities.org/id/metropolitan-district-council/wolverhampton","700979","Af Blakemore/Blakemore Foodservice","5620795","28.30","Provisions (Resale)","130195841","06/12/2017","Older People Provider Services","Bradley Lodge Resource Centre","R4102"
"Wolverhampton City Council","http://opendatacommunities.org/id/metropolitan-district-council/wolverhampton","700979","Af Blakemore/Blakemore Foodservice","5662483","173.57","Provisions (Resale)","130195457","01/12/2017","Adult Education","Caf�","R4102"
"Wolverhampton City Council","http://opendatacommunities.org/id/metropolitan-district-council/wolverhampton","700979","Af Blakemore/Blakemore Foodservice","5662483","-173.57","Provisions (Resale)","130195457","01/12/2017","Adult Education","Caf�","R4102"
"Wolverhampton City Council","http://opendatacommunities.org/id/metropolitan-district-council/wolverhampton","700979","Af Blakemore/Blakemore Foodservice","5662483","91.54","Provisions (Resale)","130195457","01/12/2017","Adult Education","Caf�","R4102"
"Wolverhampton City Council","http://opendatacommunities.org/id/metropolitan-district-council/wolverhampton","700979","Af Blakemore/Blakemore Foodservice","5662483","82.03","Provisions (Resale)","130195457","01/12/2017","Adult Education","Caf�","R4102"
"Wolverhampton City Council","http://opendatacommunities.org/id/metropolitan-district-council/wolverhampton","700979","Af Blakemore/Blakemore Foodservice","5653550","19.35","Provisions (Resale)","130195853","01/12/2017","Adult Education","Caf�","R4102"
"Wolverhampton City Council","http://opendatacommunities.org/id/metropolitan-district-council/wolverhampton","700979","Af Blakemore/Blakemore Foodservice","5604758","63.08","Provisions (Resale)","130196206","01/12/2017","Adult Education","Caf�","R4102"
"Wolverhampton City Council","http://opendatacommunities.org/id/metropolitan-district-council/wolverhampton","700979","Af Blakemore/Blakemore Foodservice","5636713","59.80","Provisions (Resale)","130196212","01/12/2017","Adult Education","Caf�","R4102"
"Wolverhampton City Council","http://opendatacommunities.org/id/metropolitan-district-council/wolverhampton","700979","Af Blakemore/Blakemore Foodservice","5646733","31.58","Provisions (Not for resale)","130195449","01/12/2017","Older People Provider Services","Bradley Lodge Resource Centre","R4101"
"Wolverhampton City Council","http://opendatacommunities.org/id/metropolitan-district-council/wolverhampton","700979","Af Blakemore/Blakemore Foodservice","5646733","-31.58","Provisions (Not for resale)","130195449","01/12/2017","Older People Provider Services","Bradley Lodge Resource Centre","R4101"
"Wolverhampton City Council","http://opendatacommunities.org/id/metropolitan-district-council/wolverhampton","700979","Af Blakemore/Blakemore Foodservice","5646733","10.75","Provisions (Not for resale)","130195449","01/12/2017","Older People Provider Services","Bradley Lodge Resource Centre","R4101"
"Wolverhampton City Council","http://opendatacommunities.org/id/metropolitan-district-council/wolverhampton","700979","Af Blakemore/Blakemore Foodservice","5646733","20.83","Provisions (Not for resale)","130195449","01/12/2017","Older People Provider Services","Bradley Lodge Resource Centre","R4101"
"Wolverhampton City Council","http://opendatacommunities.org/id/metropolitan-district-council/wolverhampton","700979","Af Blakemore/Blakemore Foodservice","5638821","438.65","Provisions (Not for resale)","130195850","01/12/2017","Older People Provider Services","Bradley Lodge Resource Centre","R4101"
"Wolverhampton City Council","http://opendatacommunities.org/id/metropolitan-district-council/wolverhampton","700979","Af Blakemore/Blakemore Foodservice","5638821","-438.65","Provisions (Not for resale)","130195850","01/12/2017","Older People Provider Services","Bradley Lodge Resource Centre","R4101"
"Wolverhampton City Council","http://opendatacommunities.org/id/metropolitan-district-council/wolverhampton","700979","Af Blakemore/Blakemore Foodservice","5638821","18.65","Provisions (Not for resale)","130195850","01/12/2017","Older People Provider Services","Bradley Lodge Resource Centre","R4101"
"Wolverhampton City Council","http://opendatacommunities.org/id/metropolitan-district-council/wolverhampton","700979","Af Blakemore/Blakemore Foodservice","5638821","438.65","Provisions (Not for resale)","130195850","01/12/2017","Older People Provider Services","Bradley Lodge Resource Centre","R4101"
"Wolverhampton City Council","http://opendatacommunities.org/id/metropolitan-district-council/wolverhampton","700979","Af Blakemore/Blakemore Foodservice","5677483","43.75","Provisions (Resale)","130195470","01/12/2017","Adult Education","Caf�","R4102"
"Wolverhampton City Council","http://opendatacommunities.org/id/metropolitan-district-council/wolverhampton","700979","Af Blakemore/Blakemore Foodservice","5645158","7.70","Provisions (Resale)","130195851","01/12/2017","Adult Education","Caf�","R4102"
"Wolverhampton City Council","http://opendatacommunities.org/id/metropolitan-district-council/wolverhampton","700979","Af Blakemore/Blakemore Foodservice","5653554","198.44","Provisions (Resale)","130195854","01/12/2017","Adult Education","Caf�","R4102"
"Wolverhampton City Council","http://opendatacommunities.org/id/metropolitan-district-council/wolverhampton","700979","Af Blakemore/Blakemore Foodservice","5653554","-198.44","Provisions (Resale)","130195854","01/12/2017","Adult Education","Caf�","R4102"
"Wolverhampton City Council","http://opendatacommunities.org/id/metropolitan-district-council/wolverhampton","700979","Af Blakemore/Blakemore Foodservice","5653554","140.28","Provisions (Resale)","130195854","01/12/2017","Adult Education","Caf�","R4102"
"Wolverhampton City Council","http://opendatacommunities.org/id/metropolitan-district-council/wolverhampton","700979","Af Blakemore/Blakemore Foodservice","5653554","58.16","Provisions (Resale)","130195854","01/12/2017","Adult Education","Caf�","R4102"
"Wolverhampton City Council","http://opendatacommunities.org/id/metropolitan-district-council/wolverhampton","700979","Af Blakemore/Blakemore Foodservice","5653895","115.27","Provisions (Not for resale)","130195452","01/12/2017","Older People Provider Services","Bradley Lodge Resource Centre","R4101"
"Wolverhampton City Council","http://opendatacommunities.org/id/metropolitan-district-council/wolverhampton","700979","Af Blakemore/Blakemore Foodservice","5656254","19.86","Provisions (Not for resale)","130195453","01/12/2017","Older People Provider Services","Bradley Lodge Resource Centre","R4101"
"Wolverhampton City Council","http://opendatacommunities.org/id/metropolitan-district-council/wolverhampton","700979","Af Blakemore/Blakemore Foodservice","5656254","-19.86","Provisions (Not for resale)","130195453","01/12/2017","Older People Provider Services","Bradley Lodge Resource Centre","R4101"
"Wolverhampton City Council","http://opendatacommunities.org/id/metropolitan-district-council/wolverhampton","700979","Af Blakemore/Blakemore Foodservice","5656254","6.45","Provisions (Not for resale)","130195453","01/12/2017","Older People Provider Services","Bradley Lodge Resource Centre","R4101"
"Wolverhampton City Council","http://opendatacommunities.org/id/metropolitan-district-council/wolverhampton","700979","Af Blakemore/Blakemore Foodservice","5656254","13.41","Provisions (Not for resale)","130195453","01/12/2017","Older People Provider Services","Bradley Lodge Resource Centre","R4101"
"Wolverhampton City Council","http://opendatacommunities.org/id/metropolitan-district-council/wolverhampton","700979","Af Blakemore/Blakemore Foodservice","5677707","102.41","Provisions (Not for resale)","130195472","01/12/2017","Older People Provider Services","Bradley Lodge Resource Centre","R4101"
"Wolverhampton City Council","http://opendatacommunities.org/id/metropolitan-district-council/wolverhampton","700979","Af Blakemore/Blakemore Foodservice","5677707","-102.41","Provisions (Not for resale)","130195472","01/12/2017","Older People Provider Services","Bradley Lodge Resource Centre","R4101"
"Wolverhampton City Council","http://opendatacommunities.org/id/metropolitan-district-council/wolverhampton","700979","Af Blakemore/Blakemore Foodservice","5677707","8.60","Provisions (Not for resale)","130195472","01/12/2017","Older People Provider Services","Bradley Lodge Resource Centre","R4101"
"Wolverhampton City Council","http://opendatacommunities.org/id/metropolitan-district-council/wolverhampton","700979","Af Blakemore/Blakemore Foodservice","5677707","93.81","Provisions (Not for resale)","130195472","01/12/2017","Older People Provider Services","Bradley Lodge Resource Centre","R4101"
"Wolverhampton City Council","http://opendatacommunities.org/id/metropolitan-district-council/wolverhampton","700979","Af Blakemore/Blakemore Foodservice","5686432","119.76","Provisions (Not for resale)","130196355","15/12/2017","Older People Provider Services","Bradley Lodge Resource Centre","R4101"
"Wolverhampton City Council","http://opendatacommunities.org/id/metropolitan-district-council/wolverhampton","700979","Af Blakemore/Blakemore Foodservice","5686432","-119.76","Provisions (Not for resale)","130196355","15/12/2017","Older People Provider Services","Bradley Lodge Resource Centre","R4101"
"Wolverhampton City Council","http://opendatacommunities.org/id/metropolitan-district-council/wolverhampton","700979","Af Blakemore/Blakemore Foodservice","5686432","29.69","Provisions (Not for resale)","130196355","15/12/2017","Older People Provider Services","Bradley Lodge Resource Centre","R4101"
"Wolverhampton City Council","http://opendatacommunities.org/id/metropolitan-district-council/wolverhampton","700979","Af Blakemore/Blakemore Foodservice","5686432","90.07","Provisions (Not for resale)","130196355","15/12/2017","Older People Provider Services","Bradley Lodge Resource Centre","R4101"
"Wolverhampton City Council","http://opendatacommunities.org/id/metropolitan-district-council/wolverhampton","700979","Af Blakemore/Blakemore Foodservice","WCC000323","310.92","Provisions (Not for resale)","130196359","13/12/2017","Leisure Services","WV Active Catering - Central","R4101"
"Wolverhampton City Council","http://opendatacommunities.org/id/metropolitan-district-council/wolverhampton","700979","Af Blakemore/Blakemore Foodservice","WCC000323","84.47","Provisions (Not for resale)","130196359","13/12/2017","Leisure Services","WV Active Catering - Central","R4101"
"Wolverhampton City Council","http://opendatacommunities.org/id/metropolitan-district-council/wolverhampton","700979","Af Blakemore/Blakemore Foodservice","5706020","35.15","Provisions (Not for resale)","130199071","27/12/2017","Older People Provider Services","Blakenhall Resource Centre","R4101"
"Wolverhampton City Council","http://opendatacommunities.org/id/metropolitan-district-council/wolverhampton","700979","Af Blakemore/Blakemore Foodservice","WCC000327","1,546.81","Provisions (Resale)","130197533","27/12/2017","Catering","Civic Centre Catering","R4102"
"Wolverhampton City Council","http://opendatacommunities.org/id/metropolitan-district-council/wolverhampton","700979","Af Blakemore/Blakemore Foodservice","WCC000327","1,655.63","Provisions (Resale)","130197533","27/12/2017","Catering","Civic Centre Catering","R4102"
"Wolverhampton City Council","http://opendatacommunities.org/id/metropolitan-district-council/wolverhampton","700979","Af Blakemore/Blakemore Foodservice","WCC000327","3,202.44","Provisions (Resale)","130197533","27/12/2017","Catering","Civic Centre Catering","R4102"
"Wolverhampton City Council","http://opendatacommunities.org/id/metropolitan-district-council/wolverhampton","700979","Af Blakemore/Blakemore Foodservice","WCC000327","-3,202.44","Provisions (Resale)","130197533","27/12/2017","Catering","Civic Centre Catering","R4102"
"Wolverhampton City Council","http://opendatacommunities.org/id/metropolitan-district-council/wolverhampton","700979","Af Blakemore/Blakemore Foodservice","5683980","231.14","Provisions (Resale)","130196350","06/12/2017","Visitor Economy","Bantock - Tea Rooms","R4102"
"Wolverhampton City Council","http://opendatacommunities.org/id/metropolitan-district-council/wolverhampton","700979","Af Blakemore/Blakemore Foodservice","5683980","-231.14","Provisions (Resale)","130196350","06/12/2017","Visitor Economy","Bantock - Tea Rooms","R4102"
"Wolverhampton City Council","http://opendatacommunities.org/id/metropolitan-district-council/wolverhampton","700979","Af Blakemore/Blakemore Foodservice","5683980","115.91","Provisions (Resale)","130196350","06/12/2017","Visitor Economy","Bantock - Tea Rooms","R4102"
"Wolverhampton City Council","http://opendatacommunities.org/id/metropolitan-district-council/wolverhampton","700979","Af Blakemore/Blakemore Foodservice","5683980","115.23","Provisions (Resale)","130196350","06/12/2017","Visitor Economy","Bantock - Tea Rooms","R4102"
"Wolverhampton City Council","http://opendatacommunities.org/id/metropolitan-district-council/wolverhampton","700979","Af Blakemore/Blakemore Foodservice","5628703","25.79","Provisions (Resale)","130195844","06/12/2017","Older People Provider Services","Bradley Lodge Resource Centre","R4102"
"Wolverhampton City Council","http://opendatacommunities.org/id/metropolitan-district-council/wolverhampton","700979","Af Blakemore/Blakemore Foodservice","5628703","-25.79","Provisions (Resale)","130195844","06/12/2017","Older People Provider Services","Bradley Lodge Resource Centre","R4102"
"Wolverhampton City Council","http://opendatacommunities.org/id/metropolitan-district-council/wolverhampton","700979","Af Blakemore/Blakemore Foodservice","5628703","17.19","Provisions (Resale)","130195844","06/12/2017","Older People Provider Services","Bradley Lodge Resource Centre","R4102"
"Wolverhampton City Council","http://opendatacommunities.org/id/metropolitan-district-council/wolverhampton","700979","Af Blakemore/Blakemore Foodservice","5628703","8.60","Provisions (Resale)","130195844","06/12/2017","Older People Provider Services","Bradley Lodge Resource Centre","R4102"
"Wolverhampton City Council","http://opendatacommunities.org/id/metropolitan-district-council/wolverhampton","700979","Af Blakemore/Blakemore Foodservice","5687805","47.09","Provisions (Not for resale)","130196356","08/12/2017","Older People Provider Services","Blakenhall Resource Centre","R4101"
"Wolverhampton City Council","http://opendatacommunities.org/id/metropolitan-district-council/wolverhampton","700979","Af Blakemore/Blakemore Foodservice","5636714","205.67","Provisions (Resale)","130195847","01/12/2017","Adult Education","Caf�","R4102"
"Wolverhampton City Council","http://opendatacommunities.org/id/metropolitan-district-council/wolverhampton","700979","Af Blakemore/Blakemore Foodservice","5636714","-205.67","Provisions (Resale)","130195847","01/12/2017","Adult Education","Caf�","R4102"
"Wolverhampton City Council","http://opendatacommunities.org/id/metropolitan-district-council/wolverhampton","700979","Af Blakemore/Blakemore Foodservice","5662469","45.15","Provisions (Resale)","130195456","01/12/2017","Adult Education","Caf�","R4102"
"Wolverhampton City Council","http://opendatacommunities.org/id/metropolitan-district-council/wolverhampton","700979","Af Blakemore/Blakemore Foodservice","5636714","141.79","Provisions (Resale)","130195847","01/12/2017","Adult Education","Caf�","R4102"
"Wolverhampton City Council","http://opendatacommunities.org/id/metropolitan-district-council/wolverhampton","700979","Af Blakemore/Blakemore Foodservice","5636714","63.88","Provisions (Resale)","130195847","01/12/2017","Adult Education","Caf�","R4102"
"Wolverhampton City Council","http://opendatacommunities.org/id/metropolitan-district-council/wolverhampton","700979","Af Blakemore/Blakemore Foodservice","5645161","134.59","Provisions (Resale)","130195852","01/12/2017","Adult Education","Caf�","R4102"
"Wolverhampton City Council","http://opendatacommunities.org/id/metropolitan-district-council/wolverhampton","700979","Af Blakemore/Blakemore Foodservice","5645161","-134.59","Provisions (Resale)","130195852","01/12/2017","Adult Education","Caf�","R4102"
"Wolverhampton City Council","http://opendatacommunities.org/id/metropolitan-district-council/wolverhampton","700979","Af Blakemore/Blakemore Foodservice","5645161","95.80","Provisions (Resale)","130195852","01/12/2017","Adult Education","Caf�","R4102"
"Wolverhampton City Council","http://opendatacommunities.org/id/metropolitan-district-council/wolverhampton","700979","Af Blakemore/Blakemore Foodservice","5645161","38.79","Provisions (Resale)","130195852","01/12/2017","Adult Education","Caf�","R4102"
"Wolverhampton City Council","http://opendatacommunities.org/id/metropolitan-district-council/wolverhampton","700979","Af Blakemore/Blakemore Foodservice","5656160","2.83","Provisions (Resale)","130195856","01/12/2017","Adult Education","Caf�","R4102"
"Wolverhampton City Council","http://opendatacommunities.org/id/metropolitan-district-council/wolverhampton","700979","Af Blakemore/Blakemore Foodservice","5679417","31.65","Provisions (Not for resale)","130195474","01/12/2017","Older People Provider Services","Blakenhall Resource Centre","R4101"
"Wolverhampton City Council","http://opendatacommunities.org/id/metropolitan-district-council/wolverhampton","700979","Af Blakemore/Blakemore Foodservice","5679417","-31.65","Provisions (Not for resale)","130195474","01/12/2017","Older People Provider Services","Blakenhall Resource Centre","R4101"
"Wolverhampton City Council","http://opendatacommunities.org/id/metropolitan-district-council/wolverhampton","700979","Af Blakemore/Blakemore Foodservice","5679417","2.15","Provisions (Not for resale)","130195474","01/12/2017","Older People Provider Services","Blakenhall Resource Centre","R4101"
"Wolverhampton City Council","http://opendatacommunities.org/id/metropolitan-district-council/wolverhampton","700979","Af Blakemore/Blakemore Foodservice","5679417","29.50","Provisions (Not for resale)","130195474","01/12/2017","Older People Provider Services","Blakenhall Resource Centre","R4101"
"Wolverhampton City Council","http://opendatacommunities.org/id/metropolitan-district-council/wolverhampton","700979","Af Blakemore/Blakemore Foodservice","5671435","391.10","Provisions (Not for resale)","130195467","01/12/2017","Older People Provider Services","Bradley Lodge Resource Centre","R4101"
"Wolverhampton City Council","http://opendatacommunities.org/id/metropolitan-district-council/wolverhampton","700979","Af Blakemore/Blakemore Foodservice","5671435","-391.10","Provisions (Not for resale)","130195467","01/12/2017","Older People Provider Services","Bradley Lodge Resource Centre","R4101"
"Wolverhampton City Council","http://opendatacommunities.org/id/metropolitan-district-council/wolverhampton","700979","Af Blakemore/Blakemore Foodservice","5671435","46.91","Provisions (Not for resale)","130195467","01/12/2017","Older People Provider Services","Bradley Lodge Resource Centre","R4101"
"Wolverhampton City Council","http://opendatacommunities.org/id/metropolitan-district-council/wolverhampton","700979","Af Blakemore/Blakemore Foodservice","5671435","344.19","Provisions (Not for resale)","130195467","01/12/2017","Older People Provider Services","Bradley Lodge Resource Centre","R4101"
"Wolverhampton City Council","http://opendatacommunities.org/id/metropolitan-district-council/wolverhampton","700979","Af Blakemore/Blakemore Foodservice","5612037","392.09","Provisions (Not for resale)","130197530","08/12/2017","Learning Disability Provider","Duke Street Bungalows","R4101"
"Wolverhampton City Council","http://opendatacommunities.org/id/metropolitan-district-council/wolverhampton","700979","Af Blakemore/Blakemore Foodservice","5612037","-392.09","Provisions (Not for resale)","130197530","08/12/2017","Learning Disability Provider","Duke Street Bungalows","R4101"
"Wolverhampton City Council","http://opendatacommunities.org/id/metropolitan-district-council/wolverhampton","700979","Af Blakemore/Blakemore Foodservice","5612037","42.53","Provisions (Not for resale)","130197530","08/12/2017","Learning Disability Provider","Duke Street Bungalows","R4101"
"Wolverhampton City Council","http://opendatacommunities.org/id/metropolitan-district-council/wolverhampton","700979","Af Blakemore/Blakemore Foodservice","5612037","349.56","Provisions (Not for resale)","130197530","08/12/2017","Learning Disability Provider","Duke Street Bungalows","R4101"
"Wolverhampton City Council","http://opendatacommunities.org/id/metropolitan-district-council/wolverhampton","700979","Af Blakemore/Blakemore Foodservice","5685833","235.28","Provisions (Resale)","130196351","06/12/2017","Visitor Economy","Art Gallery Tea Room","R4102"
"Wolverhampton City Council","http://opendatacommunities.org/id/metropolitan-district-council/wolverhampton","700979","Af Blakemore/Blakemore Foodservice","5685833","-235.28","Provisions (Resale)","130196351","06/12/2017","Visitor Economy","Art Gallery Tea Room","R4102"
"Wolverhampton City Council","http://opendatacommunities.org/id/metropolitan-district-council/wolverhampton","700979","Af Blakemore/Blakemore Foodservice","5685833","180.00","Provisions (Resale)","130196351","06/12/2017","Visitor Economy","Art Gallery Tea Room","R4102"
"Wolverhampton City Council","http://opendatacommunities.org/id/metropolitan-district-council/wolverhampton","700979","Af Blakemore/Blakemore Foodservice","5685833","55.28","Provisions (Resale)","130196351","06/12/2017","Visitor Economy","Art Gallery Tea Room","R4102"
"Wolverhampton City Council","http://opendatacommunities.org/id/metropolitan-district-council/wolverhampton","700979","Af Blakemore/Blakemore Foodservice","5620792","26.01","Provisions (Resale)","130195840","06/12/2017","Older People Provider Services","Bradley Lodge Resource Centre","R4102"
"Wolverhampton City Council","http://opendatacommunities.org/id/metropolitan-district-council/wolverhampton","700979","Af Blakemore/Blakemore Foodservice","5620792","-26.01","Provisions (Resale)","130195840","06/12/2017","Older People Provider Services","Bradley Lodge Resource Centre","R4102"
"Wolverhampton City Council","http://opendatacommunities.org/id/metropolitan-district-council/wolverhampton","700979","Af Blakemore/Blakemore Foodservice","5620792","10.77","Provisions (Resale)","130195840","06/12/2017","Older People Provider Services","Bradley Lodge Resource Centre","R4102"
"Wolverhampton City Council","http://opendatacommunities.org/id/metropolitan-district-council/wolverhampton","700979","Af Blakemore/Blakemore Foodservice","5620792","15.24","Provisions (Resale)","130195840","06/12/2017","Older People Provider Services","Bradley Lodge Resource Centre","R4102"
"Wolverhampton City Council","http://opendatacommunities.org/id/metropolitan-district-council/wolverhampton","700979","Af Blakemore/Blakemore Foodservice","WCC000326","1,157.99","Provisions (Resale)","130197532","27/12/2017","Catering","Civic Centre Catering","R4102"
"Wolverhampton City Council","http://opendatacommunities.org/id/metropolitan-district-council/wolverhampton","700979","Af Blakemore/Blakemore Foodservice","WCA000047","1,174.88","Provisions (Not for resale)","130196026","13/12/2017","Leisure Services","WV Active Catering","R4101"
"Wolverhampton City Council","http://opendatacommunities.org/id/metropolitan-district-council/wolverhampton","700979","Af Blakemore/Blakemore Foodservice","WCA000047","359.96","Provisions (Not for resale)","130196026","13/12/2017","Leisure Services","WV Active Catering","R4101"
"Wolverhampton City Council","http://opendatacommunities.org/id/metropolitan-district-council/wolverhampton","700979","Af Blakemore/Blakemore Foodservice","4794115","61.81","Provisions (Not for resale)","130196204","08/12/2017","Learning Disability Provider","Duke Street Bungalows","R4101"
"Wolverhampton City Council","http://opendatacommunities.org/id/metropolitan-district-council/wolverhampton","700979","Af Blakemore/Blakemore Foodservice","4794115","-61.81","Provisions (Not for resale)","130196204","08/12/2017","Learning Disability Provider","Duke Street Bungalows","R4101"
"Wolverhampton City Council","http://opendatacommunities.org/id/metropolitan-district-council/wolverhampton","700979","Af Blakemore/Blakemore Foodservice","4794115","61.81","Provisions (Not for resale)","130196204","08/12/2017","Learning Disability Provider","Duke Street Bungalows","R4101"
"Wolverhampton City Council","http://opendatacommunities.org/id/metropolitan-district-council/wolverhampton","700979","Af Blakemore/Blakemore Foodservice","5685939","209.50","Provisions (Resale)","130196352","06/12/2017","Adult Education","Caf�","R4102"
"Wolverhampton City Council","http://opendatacommunities.org/id/metropolitan-district-council/wolverhampton","700979","Af Blakemore/Blakemore Foodservice","5685939","57.64","Provisions (Resale)","130196352","06/12/2017","Adult Education","Caf�","R4102"
"Wolverhampton City Council","http://opendatacommunities.org/id/metropolitan-district-council/wolverhampton","700979","Af Blakemore/Blakemore Foodservice","5685939","267.14","Provisions (Resale)","130196352","06/12/2017","Adult Education","Caf�","R4102"
"Wolverhampton City Council","http://opendatacommunities.org/id/metropolitan-district-council/wolverhampton","700979","Af Blakemore/Blakemore Foodservice","5685939","-267.14","Provisions (Resale)","130196352","06/12/2017","Adult Education","Caf�","R4102"
"Wolverhampton City Council","http://opendatacommunities.org/id/metropolitan-district-council/wolverhampton","700979","Af Blakemore/Blakemore Foodservice","WCC000322","35.08","Provisions (Not for resale)","130196027","13/12/2017","Leisure Services","WV Active Catering","R4101"
"Wolverhampton City Council","http://opendatacommunities.org/id/metropolitan-district-council/wolverhampton","700979","Af Blakemore/Blakemore Foodservice","WCC000322","178.30","Provisions (Not for resale)","130196027","13/12/2017","Leisure Services","WV Active Catering","R4101"
"Wolverhampton City Council","http://opendatacommunities.org/id/metropolitan-district-council/wolverhampton","700979","Af Blakemore/Blakemore Foodservice","WCC000320","4.30","Provisions (Not for resale)","130196358","27/12/2017","Leisure Services","Bert Williams Leisure Centre Caf�","R4101"
"Wolverhampton City Council","http://opendatacommunities.org/id/metropolitan-district-council/wolverhampton","700979","Af Blakemore/Blakemore Foodservice","WCC000320","580.56","Provisions (Not for resale)","130196358","27/12/2017","Leisure Services","Bert Williams Leisure Centre Caf�","R4101"
"Wolverhampton City Council","http://opendatacommunities.org/id/metropolitan-district-council/wolverhampton","700979","Af Blakemore/Blakemore Foodservice","5706050","205.46","Provisions (Not for resale)","130199072","27/12/2017","Older People Provider Services","Blakenhall Resource Centre","R4101"
"Wolverhampton City Council","http://opendatacommunities.org/id/metropolitan-district-council/wolverhampton","700979","Af Blakemore/Blakemore Foodservice","5706050","-205.46","Provisions (Not for resale)","130199072","27/12/2017","Older People Provider Services","Blakenhall Resource Centre","R4101"
"Wolverhampton City Council","http://opendatacommunities.org/id/metropolitan-district-council/wolverhampton","700979","Af Blakemore/Blakemore Foodservice","5706050","40.93","Provisions (Not for resale)","130199072","27/12/2017","Older People Provider Services","Blakenhall Resource Centre","R4101"
"Wolverhampton City Council","http://opendatacommunities.org/id/metropolitan-district-council/wolverhampton","700979","Af Blakemore/Blakemore Foodservice","5706050","164.53","Provisions (Not for resale)","130199072","27/12/2017","Older People Provider Services","Blakenhall Resource Centre","R4101"
"Wolverhampton City Council","http://opendatacommunities.org/id/metropolitan-district-council/wolverhampton","700979","Af Blakemore/Blakemore Foodservice","WCC000292","581.25","Provisions (Not for resale)","130197360","20/12/2017","Leisure Services","Bert Williams Leisure Centre Caf�","R4101"
"Wolverhampton City Council","http://opendatacommunities.org/id/metropolitan-district-council/wolverhampton","700979","Af Blakemore/Blakemore Foodservice","WCC000292","833.59","Provisions (Not for resale)","130197360","20/12/2017","Leisure Services","Bert Williams Leisure Centre Caf�","R4101"
"Wolverhampton City Council","http://opendatacommunities.org/id/metropolitan-district-council/wolverhampton","700979","Af Blakemore/Blakemore Foodservice","5664658","323.96","Provisions (Not for resale)","130195461","01/12/2017","Older People Provider Services","Bradley Lodge Resource Centre","R4101"
"Wolverhampton City Council","http://opendatacommunities.org/id/metropolitan-district-council/wolverhampton","700979","Af Blakemore/Blakemore Foodservice","5663641","44.34","Provisions (Not for resale)","130195459","01/12/2017","Older People Provider Services","Bradley Lodge Resource Centre","R4101"
"Wolverhampton City Council","http://opendatacommunities.org/id/metropolitan-district-council/wolverhampton","700979","Af Blakemore/Blakemore Foodservice","5663641","-44.34","Provisions (Not for resale)","130195459","01/12/2017","Older People Provider Services","Bradley Lodge Resource Centre","R4101"
"Wolverhampton City Council","http://opendatacommunities.org/id/metropolitan-district-council/wolverhampton","700979","Af Blakemore/Blakemore Foodservice","5663641","35.74","Provisions (Not for resale)","130195459","01/12/2017","Older People Provider Services","Bradley Lodge Resource Centre","R4101"
"Wolverhampton City Council","http://opendatacommunities.org/id/metropolitan-district-council/wolverhampton","700979","Af Blakemore/Blakemore Foodservice","5663641","8.60","Provisions (Not for resale)","130195459","01/12/2017","Older People Provider Services","Bradley Lodge Resource Centre","R4101"
"Wolverhampton City Council","http://opendatacommunities.org/id/metropolitan-district-council/wolverhampton","700979","Af Blakemore/Blakemore Foodservice","5664658","-323.96","Provisions (Not for resale)","130195461","01/12/2017","Older People Provider Services","Bradley Lodge Resource Centre","R4101"
"Wolverhampton City Council","http://opendatacommunities.org/id/metropolitan-district-council/wolverhampton","700979","Af Blakemore/Blakemore Foodservice","5664658","95.92","Provisions (Not for resale)","130195461","01/12/2017","Older People Provider Services","Bradley Lodge Resource Centre","R4101"
"Wolverhampton City Council","http://opendatacommunities.org/id/metropolitan-district-council/wolverhampton","700979","Af Blakemore/Blakemore Foodservice","5664658","228.04","Provisions (Not for resale)","130195461","01/12/2017","Older People Provider Services","Bradley Lodge Resource Centre","R4101"
"Wolverhampton City Council","http://opendatacommunities.org/id/metropolitan-district-council/wolverhampton","700979","Af Blakemore/Blakemore Foodservice","5677718","254.12","Provisions (Not for resale)","130195473","01/12/2017","Older People Provider Services","Bradley Lodge Resource Centre","R4101"
"Wolverhampton City Council","http://opendatacommunities.org/id/metropolitan-district-council/wolverhampton","700979","Af Blakemore/Blakemore Foodservice","5677718","-254.12","Provisions (Not for resale)","130195473","01/12/2017","Older People Provider Services","Bradley Lodge Resource Centre","R4101"
"Wolverhampton City Council","http://opendatacommunities.org/id/metropolitan-district-council/wolverhampton","700979","Af Blakemore/Blakemore Foodservice","5677718","30.28","Provisions (Not for resale)","130195473","01/12/2017","Older People Provider Services","Bradley Lodge Resource Centre","R4101"
"Wolverhampton City Council","http://opendatacommunities.org/id/metropolitan-district-council/wolverhampton","700979","Af Blakemore/Blakemore Foodservice","5677718","223.84","Provisions (Not for resale)","130195473","01/12/2017","Older People Provider Services","Bradley Lodge Resource Centre","R4101"
"Wolverhampton City Council","http://opendatacommunities.org/id/metropolitan-district-council/wolverhampton","700979","Af Blakemore/Blakemore Foodservice","5677464","218.42","Provisions (Resale)","130195469","01/12/2017","Adult Education","Caf�","R4102"
"Wolverhampton City Council","http://opendatacommunities.org/id/metropolitan-district-council/wolverhampton","700979","Af Blakemore/Blakemore Foodservice","5677464","-218.42","Provisions (Resale)","130195469","01/12/2017","Adult Education","Caf�","R4102"
"Wolverhampton City Council","http://opendatacommunities.org/id/metropolitan-district-council/wolverhampton","700979","Af Blakemore/Blakemore Foodservice","5677464","145.33","Provisions (Resale)","130195469","01/12/2017","Adult Education","Caf�","R4102"
"Wolverhampton City Council","http://opendatacommunities.org/id/metropolitan-district-council/wolverhampton","700979","Af Blakemore/Blakemore Foodservice","5677464","73.09","Provisions (Resale)","130195469","01/12/2017","Adult Education","Caf�","R4102"
"Wolverhampton City Council","http://opendatacommunities.org/id/metropolitan-district-council/wolverhampton","700979","Af Blakemore/Blakemore Foodservice","5627250","106.71","Provisions (Resale)","130196210","01/12/2017","Adult Education","Caf�","R4102"
"Wolverhampton City Council","http://opendatacommunities.org/id/metropolitan-district-council/wolverhampton","700979","Af Blakemore/Blakemore Foodservice","5627250","-106.71","Provisions (Resale)","130196210","01/12/2017","Adult Education","Caf�","R4102"
"Wolverhampton City Council","http://opendatacommunities.org/id/metropolitan-district-council/wolverhampton","700979","Af Blakemore/Blakemore Foodservice","5627250","98.91","Provisions (Resale)","130196210","01/12/2017","Adult Education","Caf�","R4102"
"Wolverhampton City Council","http://opendatacommunities.org/id/metropolitan-district-council/wolverhampton","700979","Af Blakemore/Blakemore Foodservice","5627250","7.80","Provisions (Resale)","130196210","01/12/2017","Adult Education","Caf�","R4102"
"Wolverhampton City Council","http://opendatacommunities.org/id/metropolitan-district-council/wolverhampton","701100","Aggregate Industries UK Limited","CBA25799210","90,000.00","Construction and Conversion","130197211","01/12/2017","","Transport Structual Maintenance","C1100"
"Wolverhampton City Council","http://opendatacommunities.org/id/metropolitan-district-council/wolverhampton","701100","Aggregate Industries UK Limited","CBA25865611","133,057.92","Construction and Conversion","130198164","13/12/2017","","Transport Structual Maintenance","C1100"
"Wolverhampton City Council","http://opendatacommunities.org/id/metropolitan-district-council/wolverhampton","701100","Aggregate Industries UK Limited","CBA25777691","-70,739.08","Construction and Conversion","130196030","13/12/2017","","Transport Structual Maintenance","C1100"
"Wolverhampton City Council","http://opendatacommunities.org/id/metropolitan-district-council/wolverhampton","701100","Aggregate Industries UK Limited","CBA25777746","70,000.00","Construction and Conversion","130197390","01/12/2017","","Transport Structual Maintenance","C1100"
"Wolverhampton City Council","http://opendatacommunities.org/id/metropolitan-district-council/wolverhampton","701100","Aggregate Industries UK Limited","CBA25823438","80,461.62","Construction and Conversion","130197038","15/12/2017","","Transport Structual Maintenance","C1100"
"Wolverhampton City Council","http://opendatacommunities.org/id/metropolitan-district-council/wolverhampton","701111","Agilisys Limited","1227310","9,075.00","Computing - Purchase of Software","130197212","20/12/2017","Strategic Finance","Agresso System Support","R4531"
"Wolverhampton City Council","http://opendatacommunities.org/id/metropolitan-district-council/wolverhampton","701111","Agilisys Limited","1227356","9,225.00","Computing - Purchase of Software","130197953","27/12/2017","Strategic Finance","Agresso System Support","R4531"
"Wolverhampton City Council","http://opendatacommunities.org/id/metropolitan-district-council/wolverhampton","701145","T Bailey","00033","400.00","TPP - Maintenance Contractor - General","190398571","01/12/2017","Transportation","Cycling Schemes - Bikeability","R5720"
"Wolverhampton City Council","http://opendatacommunities.org/id/metropolitan-district-council/wolverhampton","701155","Aidapt Bathrooms Limited","319051","49.50","Equipment - Purchase","130197214","08/12/2017","Independent Living Service","Independent Living Service","R4000"
"Wolverhampton City Council","http://opendatacommunities.org/id/metropolitan-district-council/wolverhampton","701155","Aidapt Bathrooms Limited","021564","-295.80","Equipment - Purchase","130197391","01/12/2017","Independent Living Service","Independent Living Service","R4000"
"Wolverhampton City Council","http://opendatacommunities.org/id/metropolitan-district-council/wolverhampton","701155","Aidapt Bathrooms Limited","313032","1,705.80","Equipment - Purchase","130192853","01/12/2017","Independent Living Service","Independent Living Service","R4000"
"Wolverhampton City Council","http://opendatacommunities.org/id/metropolitan-district-council/wolverhampton","701265","Airport Express West Midlands Limited","1638","1,760.00","Client Transport","130197743","06/12/2017","School Planning & Resources","Special - Transport","R3042"
"Wolverhampton City Council","http://opendatacommunities.org/id/metropolitan-district-council/wolverhampton","701265","Airport Express West Midlands Limited","1637","600.00","Client Transport","130200602","29/12/2017","School Planning & Resources","Special - Transport","R3042"
"Wolverhampton City Council","http://opendatacommunities.org/id/metropolitan-district-council/wolverhampton","701265","Airport Express West Midlands Limited","1639","1,760.00","Client Transport","130198856","13/12/2017","School Planning & Resources","Secondary- Transport","R3042"
"Wolverhampton City Council","http://opendatacommunities.org/id/metropolitan-district-council/wolverhampton","701276","Airport-Link","BDW087","2,205.96","Client Transport","130198165","06/12/2017","School Planning & Resources","Special - Transport","R3042"
"Wolverhampton City Council","http://opendatacommunities.org/id/metropolitan-district-council/wolverhampton","701393","Aldersley Church Early Learning Committee","NEF Autumn 2017 INST 2","2,314.33","TPP - Private Nursery Education Funding","190403399","15/12/2017","Early Years","Early Years Universal Entitlement for 3 and 4 Year Olds","R5035"
"Wolverhampton City Council","http://opendatacommunities.org/id/metropolitan-district-council/wolverhampton","701393","Aldersley Church Early Learning Committee","EYPP Autumn 2017","111.30","TPP - Private Nursery Education Funding","190404359","20/12/2017","Early Years","Early Years Pupil Premium","R5035"
"Wolverhampton City Council","http://opendatacommunities.org/id/metropolitan-district-council/wolverhampton","701393","Aldersley Church Early Learning Committee","TFT Autumn 2017 Inst 2","3,945.72","Grant Payments","190404263","20/12/2017","Early Years","Early Years Entitlement Funding for Disadvantaged 2 Year Olds","R4700"
"Wolverhampton City Council","http://opendatacommunities.org/id/metropolitan-district-council/wolverhampton","701394","Aldersley High Sch/Aldersley Acad Tr","SEN Resource Base Autumn Term 2017 - Aldersley","9,120.74","Grant Payments","190405215","21/12/2017","Schools","Special Schools Top Up Contingency","R4700"
"Wolverhampton City Council","http://opendatacommunities.org/id/metropolitan-district-council/wolverhampton","701397","Aldridge Trimming","29485","430.00","Equipment - Purchase","190403335","15/12/2017","Fleet Services","Fleet Management","R4000"
"Wolverhampton City Council","http://opendatacommunities.org/id/metropolitan-district-council/wolverhampton","701417","All Saints Action Network Limited","NEF Autumn 2017 INST 2","19,370.50","TPP - Private Nursery Education Funding","190403399","15/12/2017","Early Years","Early Years Universal Entitlement for 3 and 4 Year Olds","R5035"
"Wolverhampton City Council","http://opendatacommunities.org/id/metropolitan-district-council/wolverhampton","701417","All Saints Action Network Limited","B Dube Enhanced Funding Sum 17","1,000.00","Grant Payments","190403414","15/12/2017","Early Years","Early Years SEN Inclusion Fund","R4700"
"Wolverhampton City Council","http://opendatacommunities.org/id/metropolitan-district-council/wolverhampton","701417","All Saints Action Network Limited","TFT Autumn 2017 Inst 2","10,469.52","Grant Payments","190404263","20/12/2017","Early Years","Early Years Entitlement Funding for Disadvantaged 2 Year Olds","R4700"
"Wolverhampton City Council","http://opendatacommunities.org/id/metropolitan-district-council/wolverhampton","701417","All Saints Action Network Limited","EYPP Autumn 2017","556.50","TPP - Private Nursery Education Funding","190404359","20/12/2017","Early Years","Early Years Pupil Premium","R5035"
"Wolverhampton City Council","http://opendatacommunities.org/id/metropolitan-district-council/wolverhampton","701439","Allstar Business Solutions Limited","E2009082691","52.18","Petrol","190400159","06/12/2017","Fleet Services","Fleet Management","R3000"
"Wolverhampton City Council","http://opendatacommunities.org/id/metropolitan-district-council/wolverhampton","701439","Allstar Business Solutions Limited","E2009082691","1,013.53","Petrol","190400159","06/12/2017","Fleet Services","Fleet Management","R3000"
"Wolverhampton City Council","http://opendatacommunities.org/id/metropolitan-district-council/wolverhampton","701439","Allstar Business Solutions Limited","E2009014896","99.17","Petrol","190399063","01/12/2017","Fleet Services","Fleet Management","R3000"
"Wolverhampton City Council","http://opendatacommunities.org/id/metropolitan-district-council/wolverhampton","701439","Allstar Business Solutions Limited","E2009142952","3.30","Petrol","190404690","20/12/2017","Fleet Services","Fleet Management","R3000"
"Wolverhampton City Council","http://opendatacommunities.org/id/metropolitan-district-council/wolverhampton","701439","Allstar Business Solutions Limited","E2009142952","84.63","Petrol","190404690","20/12/2017","Fleet Services","Fleet Management","R3000"
"Wolverhampton City Council","http://opendatacommunities.org/id/metropolitan-district-council/wolverhampton","701439","Allstar Business Solutions Limited","E2009142952","473.84","Petrol","190404690","20/12/2017","Fleet Services","Fleet Management","R3000"
"Wolverhampton City Council","http://opendatacommunities.org/id/metropolitan-district-council/wolverhampton","701439","Allstar Business Solutions Limited","E2009144072","78.92","Petrol","190404691","20/12/2017","Fleet Services","Fleet Management","R3000"
"Wolverhampton City Council","http://opendatacommunities.org/id/metropolitan-district-council/wolverhampton","701448","Alphatec 2000 Limited","9029","315.00","Equipment - R & M","130198166","27/12/2017","ICTS","Document Centre - General","R4003"
"Wolverhampton City Council","http://opendatacommunities.org/id/metropolitan-district-council/wolverhampton","701448","Alphatec 2000 Limited","9002","980.00","Equipment - R & M","130197215","20/12/2017","ICTS","Document Centre - General","R4003"
"Wolverhampton City Council","http://opendatacommunities.org/id/metropolitan-district-council/wolverhampton","701459","Alzheimer�S Society","PSI155665","18,439.75","TPP - Social Care Support Services","130198518","27/12/2017","Strategic Director People","Head of Strategic Commissioning � People","R5501"
"Wolverhampton City Council","http://opendatacommunities.org/id/metropolitan-district-council/wolverhampton","701502","Andrews Creative Services","AC2017 - 11","350.00","Services - Professional Fees","130196036","13/12/2017","Democratic Services","Mayoral Expenses","R4400"
"Wolverhampton City Council","http://opendatacommunities.org/id/metropolitan-district-council/wolverhampton","701502","Andrews Creative Services","AC2017 - 11","-350.00","Services - Professional Fees","130196036","13/12/2017","Democratic Services","Mayoral Expenses","R4400"
"Wolverhampton City Council","http://opendatacommunities.org/id/metropolitan-district-council/wolverhampton","701502","Andrews Creative Services","AC2017 - 11","350.00","Services - Professional Fees","130196036","13/12/2017","Democratic Services","Mayoral Expenses","R4400"
"Wolverhampton City Council","http://opendatacommunities.org/id/metropolitan-district-council/wolverhampton","701509","Angel Springs Limited (Waterlogic)","3825033","15.64","Provisions (Not for resale)","130197392","13/12/2017","Facilities Management","Culwell Street Depot","R4101"
"Wolverhampton City Council","http://opendatacommunities.org/id/metropolitan-district-council/wolverhampton","701509","Angel Springs Limited (Waterlogic)","4040987","15.64","Provisions (Not for resale)","130198859","27/12/2017","Facilities Management","Victoria Square, Block 11","R4101"
"Wolverhampton City Council","http://opendatacommunities.org/id/metropolitan-district-council/wolverhampton","701509","Angel Springs Limited (Waterlogic)","4040980","53.00","Provisions (Not for resale)","130198698","27/12/2017","Parking Services","Parking Enforcement","R4101"
"Wolverhampton City Council","http://opendatacommunities.org/id/metropolitan-district-council/wolverhampton","701509","Angel Springs Limited (Waterlogic)","4040988","32.40","Provisions (Not for resale)","130199381","27/12/2017","School Planning & Resources","Education Data Services","R4101"
"Wolverhampton City Council","http://opendatacommunities.org/id/metropolitan-district-council/wolverhampton","701509","Angel Springs Limited (Waterlogic)","3986807","15.64","Provisions (Not for resale)","130197216","06/12/2017","Early Intervention","EIP Locality 2 � Bilston/Rocket Pool","R4101"
"Wolverhampton City Council","http://opendatacommunities.org/id/metropolitan-district-council/wolverhampton","701509","Angel Springs Limited (Waterlogic)","4041016","157.50","Provisions (Not for resale)","130198702","27/12/2017","Maintenance Programme","Civic Centre Repairs & Maintenance","R4101"
"Wolverhampton City Council","http://opendatacommunities.org/id/metropolitan-district-council/wolverhampton","701509","Angel Springs Limited (Waterlogic)","4040981","15.64","Provisions (Not for resale)","130198858","27/12/2017","Early Intervention","EIP Locality 2 � Bilston/Rocket Pool","R4101"
"Wolverhampton City Council","http://opendatacommunities.org/id/metropolitan-district-council/wolverhampton","701509","Angel Springs Limited (Waterlogic)","4040250","12.96","Provisions (Not for resale)","130199465","27/12/2017","Environmental Maintenance","Arbor Scheme","R4101"
"Wolverhampton City Council","http://opendatacommunities.org/id/metropolitan-district-council/wolverhampton","701509","Angel Springs Limited (Waterlogic)","3986813","15.64","Provisions (Not for resale)","130197217","13/12/2017","Facilities Management","Victoria Square, Block 11","R4101"
"Wolverhampton City Council","http://opendatacommunities.org/id/metropolitan-district-council/wolverhampton","701509","Angel Springs Limited (Waterlogic)","3986553","234.00","Equipment - Purchase","130199350","28/12/2017","Early Intervention","EIP Locality 5 � Whitmore Reans","R4000"
"Wolverhampton City Council","http://opendatacommunities.org/id/metropolitan-district-council/wolverhampton","701509","Angel Springs Limited (Waterlogic)","4040984","29.74","Provisions (Not for resale)","130198700","27/12/2017","Customer Services","City Direct","R4101"
"Wolverhampton City Council","http://opendatacommunities.org/id/metropolitan-district-council/wolverhampton","701509","Angel Springs Limited (Waterlogic)","4041022","15.64","Provisions (Not for resale)","130198519","27/12/2017","Facilities Management","Culwell Street Depot","R4101"
"Wolverhampton City Council","http://opendatacommunities.org/id/metropolitan-district-council/wolverhampton","701509","Angel Springs Limited (Waterlogic)","3714878","15.64","Provisions (Not for resale)","130198857","15/12/2017","Facilities Management","Victoria Square, Block 11","R4101"
"Wolverhampton City Council","http://opendatacommunities.org/id/metropolitan-district-council/wolverhampton","701509","Angel Springs Limited (Waterlogic)","4041018","69.20","Provisions (Not for resale)","130198703","27/12/2017","Highways Maintenance","Patching","R4101"
"Wolverhampton City Council","http://opendatacommunities.org/id/metropolitan-district-council/wolverhampton","701509","Angel Springs Limited (Waterlogic)","4040979","40.92","Provisions (Not for resale)","130198697","27/12/2017","Parking Services","Car Parks Operational Staff","R4101"
"Wolverhampton City Council","http://opendatacommunities.org/id/metropolitan-district-council/wolverhampton","701509","Angel Springs Limited (Waterlogic)","4040982","15.00","Provisions (Not for resale)","130198699","27/12/2017","Early Intervention","EIP Locality 7 � Low Hill","R4101"
"Wolverhampton City Council","http://opendatacommunities.org/id/metropolitan-district-council/wolverhampton","701509","Angel Springs Limited (Waterlogic)","3932156","15.64","Provisions (Not for resale)","130197393","13/12/2017","Facilities Management","Culwell Street Depot","R4101"
"Wolverhampton City Council","http://opendatacommunities.org/id/metropolitan-district-council/wolverhampton","701509","Angel Springs Limited (Waterlogic)","3986852","15.64","Provisions (Not for resale)","130197218","01/12/2017","Facilities Management","Culwell Street Depot","R4101"
"Wolverhampton City Council","http://opendatacommunities.org/id/metropolitan-district-council/wolverhampton","701512","Anglia Dna Services Limited","1391","138.00","Services - Professional Fees","130196700","15/12/2017","Child Protection","Head of Service - CINCP","R4400"
"Wolverhampton City Council","http://opendatacommunities.org/id/metropolitan-district-council/wolverhampton","701545","Apcoa Parking (UK) Limited","263958","56,276.53","TPP - Traffic Management","130194566","20/12/2017","Parking Services","Parking Enforcement","R5050"
"Wolverhampton City Council","http://opendatacommunities.org/id/metropolitan-district-council/wolverhampton","701547","Apetito Limited","9002165372","1,108.31","Provisions (Resale)","130196213","20/12/2017","Catering","Meals on Wheels","R4102"
"Wolverhampton City Council","http://opendatacommunities.org/id/metropolitan-district-council/wolverhampton","701547","Apetito Limited","9002158968","1,063.22","Provisions (Resale)","130195312","06/12/2017","Catering","Meals on Wheels","R4102"
"Wolverhampton City Council","http://opendatacommunities.org/id/metropolitan-district-council/wolverhampton","701547","Apetito Limited","9002178159","1,179.11","Provisions (Resale)","130197954","27/12/2017","Catering","Meals on Wheels","R4102"
"Wolverhampton City Council","http://opendatacommunities.org/id/metropolitan-district-council/wolverhampton","701547","Apetito Limited","9002171768","1,001.98","Provisions (Resale)","130197044","20/12/2017","Catering","Meals on Wheels","R4102"
"Wolverhampton City Council","http://opendatacommunities.org/id/metropolitan-district-council/wolverhampton","701547","Apetito Limited","9002163009","1,244.05","Provisions (Resale)","130195862","06/12/2017","Catering","Meals on Wheels","R4102"
"Wolverhampton City Council","http://opendatacommunities.org/id/metropolitan-district-council/wolverhampton","701547","Apetito Limited","9002182290","1,538.40","Provisions (Resale)","130198520","27/12/2017","Catering","Meals on Wheels","R4102"
"Wolverhampton City Council","http://opendatacommunities.org/id/metropolitan-district-council/wolverhampton","701547","Apetito Limited","9002175764","1,285.03","Provisions (Resale)","130197535","20/12/2017","Catering","Meals on Wheels","R4102"
"Wolverhampton City Council","http://opendatacommunities.org/id/metropolitan-district-council/wolverhampton","701547","Apetito Limited","9002170468","-23.61","Provisions (Resale)","130198363","20/12/2017","Catering","Meals on Wheels","R4102"
"Wolverhampton City Council","http://opendatacommunities.org/id/metropolitan-district-council/wolverhampton","701547","Apetito Limited","9002169392","1,268.50","Provisions (Resale)","130196702","20/12/2017","Catering","Meals on Wheels","R4102"
"Wolverhampton City Council","http://opendatacommunities.org/id/metropolitan-district-council/wolverhampton","701594","Argos Business Solutions Limited","218593805","227.00","Grant Payments","130198364","29/12/2017","Early Intervention","EIP Locality 3 - Graiseley","R4700"
"Wolverhampton City Council","http://opendatacommunities.org/id/metropolitan-district-council/wolverhampton","701594","Argos Business Solutions Limited","218593805","-227.00","Grant Payments","130198364","29/12/2017","Early Intervention","EIP Locality 3 - Graiseley","R4700"
"Wolverhampton City Council","http://opendatacommunities.org/id/metropolitan-district-council/wolverhampton","701594","Argos Business Solutions Limited","218593805","200.78","Grant Payments","130198364","29/12/2017","Early Intervention","EIP Locality 3 - Graiseley","R4700"
"Wolverhampton City Council","http://opendatacommunities.org/id/metropolitan-district-council/wolverhampton","701594","Argos Business Solutions Limited","01593786","108.36","Equipment - Purchase","130194302","01/12/2017","Early Intervention","EIP Locality 3 - Graiseley","R4000"
"Wolverhampton City Council","http://opendatacommunities.org/id/metropolitan-district-council/wolverhampton","701595","Argus Fire Protection Co.Limited","39505","300.00","Equipment - Purchase","130196488","13/12/2017","Maintenance Programme","Civic Centre Repairs & Maintenance","R4000"
"Wolverhampton City Council","http://opendatacommunities.org/id/metropolitan-district-council/wolverhampton","701603","Arnold Clark Finance Limited","HI2270130","41.88","Hire of Vehicles","190406324","29/12/2017","Fleet Services","Fleet Management","R3200"
"Wolverhampton City Council","http://opendatacommunities.org/id/metropolitan-district-council/wolverhampton","701603","Arnold Clark Finance Limited","HI2279669","18.12","Hire of Vehicles","190406332","29/12/2017","Fleet Services","Fleet Management","R3200"
"Wolverhampton City Council","http://opendatacommunities.org/id/metropolitan-district-council/wolverhampton","701603","Arnold Clark Finance Limited","HI2273534","18.12","Hire of Vehicles","190406328","29/12/2017","Fleet Services","Fleet Management","R3200"
"Wolverhampton City Council","http://opendatacommunities.org/id/metropolitan-district-council/wolverhampton","701603","Arnold Clark Finance Limited","HI2270129","18.12","Hire of Vehicles","190406323","29/12/2017","Fleet Services","Fleet Management","R3200"
"Wolverhampton City Council","http://opendatacommunities.org/id/metropolitan-district-council/wolverhampton","701603","Arnold Clark Finance Limited","HI2272963","18.12","Hire of Vehicles","190406327","29/12/2017","Fleet Services","Fleet Management","R3200"
"Wolverhampton City Council","http://opendatacommunities.org/id/metropolitan-district-council/wolverhampton","701603","Arnold Clark Finance Limited","HI2279280","36.24","Hire of Vehicles","190406331","29/12/2017","Fleet Services","Fleet Management","R3200"
"Wolverhampton City Council","http://opendatacommunities.org/id/metropolitan-district-council/wolverhampton","701603","Arnold Clark Finance Limited","HI2270132","18.12","Hire of Vehicles","190406325","29/12/2017","Fleet Services","Fleet Management","R3200"
"Wolverhampton City Council","http://opendatacommunities.org/id/metropolitan-district-council/wolverhampton","701603","Arnold Clark Finance Limited","HI2275427","18.12","Hire of Vehicles","190406329","29/12/2017","Fleet Services","Fleet Management","R3200"
"Wolverhampton City Council","http://opendatacommunities.org/id/metropolitan-district-council/wolverhampton","701603","Arnold Clark Finance Limited","HI2271409","18.12","Hire of Vehicles","190406326","29/12/2017","Fleet Services","Fleet Management","R3200"
"Wolverhampton City Council","http://opendatacommunities.org/id/metropolitan-district-council/wolverhampton","701603","Arnold Clark Finance Limited","HI2277134","36.24","Hire of Vehicles","190406330","29/12/2017","Fleet Services","Fleet Management","R3200"
"Wolverhampton City Council","http://opendatacommunities.org/id/metropolitan-district-council/wolverhampton","701603","Arnold Clark Finance Limited","HI2268206","18.12","Hire of Vehicles","190406322","29/12/2017","Fleet Services","Fleet Management","R3200"
"Wolverhampton City Council","http://opendatacommunities.org/id/metropolitan-district-council/wolverhampton","701613","Arthur Brett (Catering) Limited","ID992269","163.76","Provisions (Resale)","130199488","27/12/2017","Visitor Economy","Bantock - Tea Rooms","R4102"
"Wolverhampton City Council","http://opendatacommunities.org/id/metropolitan-district-council/wolverhampton","701613","Arthur Brett (Catering) Limited","ID992895","59.10","Provisions (Resale)","130199491","27/12/2017","Visitor Economy","Bantock - Tea Rooms","R4102"
"Wolverhampton City Council","http://opendatacommunities.org/id/metropolitan-district-council/wolverhampton","701613","Arthur Brett (Catering) Limited","ID994006","108.52","Provisions (Resale)","130199496","28/12/2017","Visitor Economy","Bantock - Tea Rooms","R4102"
"Wolverhampton City Council","http://opendatacommunities.org/id/metropolitan-district-council/wolverhampton","701613","Arthur Brett (Catering) Limited","ID991510","25.59","Provisions (Resale)","130199079","20/12/2017","Visitor Economy","Bantock - Tea Rooms","R4102"
"Wolverhampton City Council","http://opendatacommunities.org/id/metropolitan-district-council/wolverhampton","701613","Arthur Brett (Catering) Limited","ID987420","64.31","Provisions (Resale)","130197220","06/12/2017","Visitor Economy","Bantock - Tea Rooms","R4102"
"Wolverhampton City Council","http://opendatacommunities.org/id/metropolitan-district-council/wolverhampton","701613","Arthur Brett (Catering) Limited","ID987586","14.98","Provisions (Resale)","130197221","06/12/2017","Older People Provider Services","Blakenhall Resource Centre","R4102"
"Wolverhampton City Council","http://opendatacommunities.org/id/metropolitan-district-council/wolverhampton","701613","Arthur Brett (Catering) Limited","ID991039","31.66","Provisions (Resale)","130199076","15/12/2017","Visitor Economy","Bantock - Tea Rooms","R4102"
"Wolverhampton City Council","http://opendatacommunities.org/id/metropolitan-district-council/wolverhampton","701613","Arthur Brett (Catering) Limited","ID962915","51.60","Provisions (Resale)","130196217","01/12/2017","Older People Provider Services","Bradley Lodge Resource Centre","R4102"
"Wolverhampton City Council","http://opendatacommunities.org/id/metropolitan-district-council/wolverhampton","701613","Arthur Brett (Catering) Limited","ID965113","4.20","Provisions (Resale)","130196218","01/12/2017","Older People Provider Services","Bradley Lodge Resource Centre","R4102"
"Wolverhampton City Council","http://opendatacommunities.org/id/metropolitan-district-council/wolverhampton","701613","Arthur Brett (Catering) Limited","ID989682","72.33","Provisions (Resale)","130199486","27/12/2017","Visitor Economy","Bantock - Tea Rooms","R4102"
"Wolverhampton City Council","http://opendatacommunities.org/id/metropolitan-district-council/wolverhampton","701613","Arthur Brett (Catering) Limited","ID989987","109.75","Provisions (Resale)","130198167","13/12/2017","Visitor Economy","Art Gallery Tea Room","R4102"
"Wolverhampton City Council","http://opendatacommunities.org/id/metropolitan-district-council/wolverhampton","701613","Arthur Brett (Catering) Limited","ID991256","30.33","Provisions (Resale)","130199078","20/12/2017","Older People Provider Services","Blakenhall Resource Centre","R4102"
"Wolverhampton City Council","http://opendatacommunities.org/id/metropolitan-district-council/wolverhampton","701613","Arthur Brett (Catering) Limited","ID987915","31.93","Provisions (Resale)","130197542","06/12/2017","Adult Education","Caf�","R4102"
"Wolverhampton City Council","http://opendatacommunities.org/id/metropolitan-district-council/wolverhampton","701613","Arthur Brett (Catering) Limited","ID962911","47.53","Provisions (Resale)","130196215","01/12/2017","Older People Provider Services","Bradley Lodge Resource Centre","R4102"
"Wolverhampton City Council","http://opendatacommunities.org/id/metropolitan-district-council/wolverhampton","701613","Arthur Brett (Catering) Limited","ID987102","18.86","Provisions (Not for resale)","130197541","15/12/2017","Older People Provider Services","Bradley Lodge Resource Centre","R4101"
"Wolverhampton City Council","http://opendatacommunities.org/id/metropolitan-district-council/wolverhampton","701613","Arthur Brett (Catering) Limited","ID984913","26.22","Provisions (Not for resale)","130197538","15/12/2017","Older People Provider Services","Bradley Lodge Resource Centre","R4101"
"Wolverhampton City Council","http://opendatacommunities.org/id/metropolitan-district-council/wolverhampton","701613","Arthur Brett (Catering) Limited","ID986666","113.70","Provisions (Resale)","130197539","01/12/2017","Visitor Economy","Bantock - Tea Rooms","R4102"
"Wolverhampton City Council","http://opendatacommunities.org/id/metropolitan-district-council/wolverhampton","701613","Arthur Brett (Catering) Limited","ID988928","111.90","Provisions (Resale)","130199483","27/12/2017","Visitor Economy","Bantock - Tea Rooms","R4102"
"Wolverhampton City Council","http://opendatacommunities.org/id/metropolitan-district-council/wolverhampton","701613","Arthur Brett (Catering) Limited","ID989037","25.94","Provisions (Resale)","130199484","27/12/2017","Older People Provider Services","Blakenhall Resource Centre","R4102"
"Wolverhampton City Council","http://opendatacommunities.org/id/metropolitan-district-council/wolverhampton","701613","Arthur Brett (Catering) Limited","ID937056","0.85","Provisions (Resale)","130197536","08/12/2017","Older People Provider Services","Bradley Lodge Resource Centre","R4102"
"Wolverhampton City Council","http://opendatacommunities.org/id/metropolitan-district-council/wolverhampton","701613","Arthur Brett (Catering) Limited","ID991093","30.10","Provisions (Resale)","130199077","20/12/2017","Older People Provider Services","Blakenhall Resource Centre","R4102"
"Wolverhampton City Council","http://opendatacommunities.org/id/metropolitan-district-council/wolverhampton","701613","Arthur Brett (Catering) Limited","ID962196","21.36","Provisions (Not for resale)","130197537","08/12/2017","Learning Disability Provider","Duke Street Bungalows","R4101"
"Wolverhampton City Council","http://opendatacommunities.org/id/metropolitan-district-council/wolverhampton","701613","Arthur Brett (Catering) Limited","ID988056","121.16","Provisions (Resale)","130197222","06/12/2017","Visitor Economy","Art Gallery Tea Room","R4102"
"Wolverhampton City Council","http://opendatacommunities.org/id/metropolitan-district-council/wolverhampton","701613","Arthur Brett (Catering) Limited","ID983156","49.65","Provisions (Not for resale)","130196369","06/12/2017","Older People Provider Services","Bradley Lodge Resource Centre","R4101"
"Wolverhampton City Council","http://opendatacommunities.org/id/metropolitan-district-council/wolverhampton","701613","Arthur Brett (Catering) Limited","ID987098","21.21","Provisions (Not for resale)","130197540","15/12/2017","Older People Provider Services","Bradley Lodge Resource Centre","R4101"
"Wolverhampton City Council","http://opendatacommunities.org/id/metropolitan-district-council/wolverhampton","701613","Arthur Brett (Catering) Limited","ID990920","104.86","Provisions (Resale)","130198704","15/12/2017","Visitor Economy","Art Gallery Tea Room","R4102"
"Wolverhampton City Council","http://opendatacommunities.org/id/metropolitan-district-council/wolverhampton","701613","Arthur Brett (Catering) Limited","ID987044","25.00","Provisions (Resale)","130197219","01/12/2017","Adult Education","Caf�","R4102"
"Wolverhampton City Council","http://opendatacommunities.org/id/metropolitan-district-council/wolverhampton","701613","Arthur Brett (Catering) Limited","ID986583","110.70","Provisions (Resale)","130196876","01/12/2017","Visitor Economy","Art Gallery Tea Room","R4102"
"Wolverhampton City Council","http://opendatacommunities.org/id/metropolitan-district-council/wolverhampton","701613","Arthur Brett (Catering) Limited","ID982974","50.15","Provisions (Not for resale)","130195481","01/12/2017","Older People Provider Services","Bradley Lodge Resource Centre","R4101"
"Wolverhampton City Council","http://opendatacommunities.org/id/metropolitan-district-council/wolverhampton","701613","Arthur Brett (Catering) Limited","cn33287","-56.27","Provisions (Resale)","130199482","27/12/2017","Older People Provider Services","Blakenhall Resource Centre","R4102"
"Wolverhampton City Council","http://opendatacommunities.org/id/metropolitan-district-council/wolverhampton","701613","Arthur Brett (Catering) Limited","cn33287","25.94","Provisions (Resale)","130199482","27/12/2017","Older People Provider Services","Blakenhall Resource Centre","R4102"
"Wolverhampton City Council","http://opendatacommunities.org/id/metropolitan-district-council/wolverhampton","701613","Arthur Brett (Catering) Limited","ID993082","15.94","Provisions (Resale)","130199493","27/12/2017","Older People Provider Services","Blakenhall Resource Centre","R4102"
"Wolverhampton City Council","http://opendatacommunities.org/id/metropolitan-district-council/wolverhampton","701613","Arthur Brett (Catering) Limited","ID989032","77.26","Provisions (Resale)","130197745","08/12/2017","Visitor Economy","Art Gallery Tea Room","R4102"
"Wolverhampton City Council","http://opendatacommunities.org/id/metropolitan-district-council/wolverhampton","701613","Arthur Brett (Catering) Limited","ID984350","41.34","Provisions (Not for resale)","130196703","06/12/2017","Older People Provider Services","Bradley Lodge Resource Centre","R4101"
"Wolverhampton City Council","http://opendatacommunities.org/id/metropolitan-district-council/wolverhampton","701613","Arthur Brett (Catering) Limited","ID902043","11.20","Provisions (Not for resale)","130195865","06/12/2017","Older People Provider Services","Bradley Lodge Resource Centre","R4101"
"Wolverhampton City Council","http://opendatacommunities.org/id/metropolitan-district-council/wolverhampton","701613","Arthur Brett (Catering) Limited","ID990819","130.42","Provisions (Resale)","130199074","15/12/2017","Visitor Economy","Bantock - Tea Rooms","R4102"
"Wolverhampton City Council","http://opendatacommunities.org/id/metropolitan-district-council/wolverhampton","701613","Arthur Brett (Catering) Limited","ID965150","19.07","Provisions (Not for resale)","130188450","15/12/2017","Learning Disability Provider","Duke Street Bungalows","R4101"
"Wolverhampton City Council","http://opendatacommunities.org/id/metropolitan-district-council/wolverhampton","701613","Arthur Brett (Catering) Limited","ID965141","41.82","Provisions (Resale)","130196219","01/12/2017","Older People Provider Services","Bradley Lodge Resource Centre","R4102"
"Wolverhampton City Council","http://opendatacommunities.org/id/metropolitan-district-council/wolverhampton","701616","Arthur M Griffiths & Son Limited","1N17469","21,996.55","Construction and Conversion","130199498","27/12/2017","","Community Hubs","C1100"
"Wolverhampton City Council","http://opendatacommunities.org/id/metropolitan-district-council/wolverhampton","701616","Arthur M Griffiths & Son Limited","IN17463","68,111.78","Construction and Conversion","130199499","27/12/2017","","Primary Expansion Programme","C1100"
"Wolverhampton City Council","http://opendatacommunities.org/id/metropolitan-district-council/wolverhampton","701616","Arthur M Griffiths & Son Limited","IN17471","25,951.09","Construction and Conversion","130199501","27/12/2017","","Vacation & Disposal of Jennie Lee Centre","C1100"
"Wolverhampton City Council","http://opendatacommunities.org/id/metropolitan-district-council/wolverhampton","701650","Ashtead Plant Hire Company Limited","16400881","477.90","Equipment - Hire","130195869","06/12/2017","Visitor Economy","Bonfire","R4001"
"Wolverhampton City Council","http://opendatacommunities.org/id/metropolitan-district-council/wolverhampton","701650","Ashtead Plant Hire Company Limited","16400880","426.15","Equipment - Hire","130195868","06/12/2017","Visitor Economy","Bonfire","R4001"
"Wolverhampton City Council","http://opendatacommunities.org/id/metropolitan-district-council/wolverhampton","701656","Askews & Holts Library Services Limited","13883","70.90","Books","130199504","28/12/2017","Strategic Organisation Development","Global Budgets","R4309"
"Wolverhampton City Council","http://opendatacommunities.org/id/metropolitan-district-council/wolverhampton","701672","Assn Of Electoral Administrators","22491","40.00","Training Expenses","130196041","13/12/2017","Democratic Services","Electoral Registration","R1650"
"Wolverhampton City Council","http://opendatacommunities.org/id/metropolitan-district-council/wolverhampton","701672","Assn Of Electoral Administrators","22515","740.00","Training Expenses","130196492","13/12/2017","Human Resources","Centralised Training","R1650"
"Wolverhampton City Council","http://opendatacommunities.org/id/metropolitan-district-council/wolverhampton","701680","Associated  Radio Taxi�s","ART-17-009797","1,400.08","Client Transport","130199295","20/12/2017","School Planning & Resources","Secondary- Transport","R3042"
"Wolverhampton City Council","http://opendatacommunities.org/id/metropolitan-district-council/wolverhampton","701680","Associated  Radio Taxi�s","02428","108.70","Client Transport","130198705","15/12/2017","Child Protection","Childrens with Disabilities Team","R3042"
"Wolverhampton City Council","http://opendatacommunities.org/id/metropolitan-district-council/wolverhampton","701680","Associated  Radio Taxi�s","02428","-108.70","Client Transport","130198705","15/12/2017","Child Protection","Childrens with Disabilities Team","R3042"
"Wolverhampton City Council","http://opendatacommunities.org/id/metropolitan-district-council/wolverhampton","701680","Associated  Radio Taxi�s","02428","108.70","Client Transport","130198705","15/12/2017","Child Protection","Childrens with Disabilities Team","R3042"
"Wolverhampton City Council","http://opendatacommunities.org/id/metropolitan-district-council/wolverhampton","701680","Associated  Radio Taxi�s","ART-17-009986","1,530.98","Client Transport","130198981","13/12/2017","School Planning & Resources","Primary - Transport","R3042"
"Wolverhampton City Council","http://opendatacommunities.org/id/metropolitan-district-council/wolverhampton","701680","Associated  Radio Taxi�s","ART-17-009798","1,160.46","Client Transport","130199296","20/12/2017","School Planning & Resources","Secondary- Transport","R3042"
"Wolverhampton City Council","http://opendatacommunities.org/id/metropolitan-district-council/wolverhampton","701680","Associated  Radio Taxi�s","ART-17-009990","997.50","Client Transport","130198707","13/12/2017","School Planning & Resources","Secondary- Transport","R3042"
"Wolverhampton City Council","http://opendatacommunities.org/id/metropolitan-district-council/wolverhampton","701680","Associated  Radio Taxi�s","ART-17-00799","1,179.64","Client Transport","130199294","20/12/2017","School Planning & Resources","Primary - Transport","R3042"
"Wolverhampton City Council","http://opendatacommunities.org/id/metropolitan-district-council/wolverhampton","701680","Associated  Radio Taxi�s","ART-17-009988","1,104.60","Client Transport","130198706","13/12/2017","School Planning & Resources","Special - Transport","R3042"
"Wolverhampton City Council","http://opendatacommunities.org/id/metropolitan-district-council/wolverhampton","701682","Association Of Adult Education And","0566","120.00","Training Expenses","130198365","29/12/2017","Adult Education","Staff Development","R1650"
"Wolverhampton City Council","http://opendatacommunities.org/id/metropolitan-district-council/wolverhampton","701707","Aurora Graphics & Displays Limited","53138","61.65","Printing","130199507","28/12/2017","ICTS","Document Centre - General","R4300"
"Wolverhampton City Council","http://opendatacommunities.org/id/metropolitan-district-council/wolverhampton","701707","Aurora Graphics & Displays Limited","52718","36.00","Printing","130197394","06/12/2017","ICTS","Document Centre - General","R4300"
"Wolverhampton City Council","http://opendatacommunities.org/id/metropolitan-district-council/wolverhampton","701707","Aurora Graphics & Displays Limited","52972","79.20","Printing","130199506","28/12/2017","ICTS","Document Centre - General","R4300"
"Wolverhampton City Council","http://opendatacommunities.org/id/metropolitan-district-council/wolverhampton","701712","Pelican Rouge Coffee Solutions Limited","170056766","481.31","Provisions (Resale)","130196493","01/12/2017","Catering","Civic Centre Catering","R4102"
"Wolverhampton City Council","http://opendatacommunities.org/id/metropolitan-district-council/wolverhampton","701712","Pelican Rouge Coffee Solutions Limited","170056766","-481.31","Provisions (Resale)","130196493","01/12/2017","Catering","Civic Centre Catering","R4102"
"Wolverhampton City Council","http://opendatacommunities.org/id/metropolitan-district-council/wolverhampton","701712","Pelican Rouge Coffee Solutions Limited","170056766","481.31","Provisions (Resale)","130196493","01/12/2017","Catering","Civic Centre Catering","R4102"
"Wolverhampton City Council","http://opendatacommunities.org/id/metropolitan-district-council/wolverhampton","701739","Axiom Building Solutions","05113","4,625.00","R&M - Departmental planned (external)","130196877","20/12/2017","Capital Programme","Capital Programme Team work for external clients","R2001"
"Wolverhampton City Council","http://opendatacommunities.org/id/metropolitan-district-council/wolverhampton","701739","Axiom Building Solutions","05114","175.00","R&M - Departmental planned (external)","130196878","20/12/2017","Corporate Asset Management","Statutory Surveys","R2001"
"Wolverhampton City Council","http://opendatacommunities.org/id/metropolitan-district-council/wolverhampton","701739","Axiom Building Solutions","05074","2,450.00","Construction and Conversion","130197543","13/12/2017","","Primary Expansion Programme","C1100"
"Wolverhampton City Council","http://opendatacommunities.org/id/metropolitan-district-council/wolverhampton","701786","Baker Flooring Limited","IN632","2,190.00","Equipment - Purchase","130199107","20/12/2017","Learning Disability Provider","Learning Disabilities Management","R4000"
"Wolverhampton City Council","http://opendatacommunities.org/id/metropolitan-district-council/wolverhampton","701787","Baker Hall Limited","WV/11/17","1,295.00","Services - Consultants","130197956","27/12/2017","Planning","Building Consultancy","R4404"
"Wolverhampton City Council","http://opendatacommunities.org/id/metropolitan-district-council/wolverhampton","701797","Barber Of Sheffield Limited","557319","575.74","Equipment - Purchase","130196371","13/12/2017","Bereavement Services","Coroners","R4000"
"Wolverhampton City Council","http://opendatacommunities.org/id/metropolitan-district-council/wolverhampton","701797","Barber Of Sheffield Limited","560255","42.75","Equipment - Purchase","130197544","27/12/2017","Bereavement Services","Coroners","R4000"
"Wolverhampton City Council","http://opendatacommunities.org/id/metropolitan-district-council/wolverhampton","701797","Barber Of Sheffield Limited","560255","112.25","Equipment - Purchase","130197544","27/12/2017","Bereavement Services","Coroners","R4000"
"Wolverhampton City Council","http://opendatacommunities.org/id/metropolitan-district-council/wolverhampton","701797","Barber Of Sheffield Limited","560255","8.90","Equipment - Purchase","130197544","27/12/2017","Bereavement Services","Coroners","R4000"
"Wolverhampton City Council","http://opendatacommunities.org/id/metropolitan-district-council/wolverhampton","701797","Barber Of Sheffield Limited","546423","14.25","Equipment - Purchase","130199510","29/12/2017","Bereavement Services","Coroners","R4000"
"Wolverhampton City Council","http://opendatacommunities.org/id/metropolitan-district-council/wolverhampton","701797","Barber Of Sheffield Limited","546423","13.00","Equipment - Purchase","130199510","29/12/2017","Bereavement Services","Coroners","R4000"
"Wolverhampton City Council","http://opendatacommunities.org/id/metropolitan-district-council/wolverhampton","701807","Barnsley Bate Limited","17285","625.00","Services - Professional Fees","130198982","15/12/2017","Public Protection","EHTS Operational Costs","R4400"
"Wolverhampton City Council","http://opendatacommunities.org/id/metropolitan-district-council/wolverhampton","701807","Barnsley Bate Limited","17271","500.00","Services - Professional Fees","130197746","06/12/2017","Public Protection","EHTS Operational Costs","R4400"
"Wolverhampton City Council","http://opendatacommunities.org/id/metropolitan-district-council/wolverhampton","701817","Base 25","3263","300.00","Services - Supplies and Services to service users","130197748","20/12/2017","Early Intervention","EIP Locality 3 - Graiseley","R4408"
"Wolverhampton City Council","http://opendatacommunities.org/id/metropolitan-district-council/wolverhampton","701817","Base 25","3224","13,335.00","TPP - Public Health Contracts","130197747","06/12/2017","Contracts","Public Mental Health","R5060"
"Wolverhampton City Council","http://opendatacommunities.org/id/metropolitan-district-council/wolverhampton","701817","Base 25","3224","-13,335.00","TPP - Public Health Contracts","130197747","06/12/2017","Contracts","Public Mental Health","R5060"
"Wolverhampton City Council","http://opendatacommunities.org/id/metropolitan-district-council/wolverhampton","701817","Base 25","3224","13,335.00","TPP - Public Health Contracts","130197747","06/12/2017","Contracts","Public Mental Health","R5060"
"Wolverhampton City Council","http://opendatacommunities.org/id/metropolitan-district-council/wolverhampton","701832","Bbp.Security Services & Training Limited","175WCC041217","484.00","Services - Security","130197958","13/12/2017","Maintenance Programme","Asset Management Team","R4405"
"Wolverhampton City Council","http://opendatacommunities.org/id/metropolitan-district-council/wolverhampton","701832","Bbp.Security Services & Training Limited","182WCC121217","3,380.00","Services - Security","130199269","21/12/2017","Facilities Management","i10 Facilities Management","R4405"
"Wolverhampton City Council","http://opendatacommunities.org/id/metropolitan-district-council/wolverhampton","701832","Bbp.Security Services & Training Limited","178WCC121217","1,900.00","Services - Security","130199265","21/12/2017","Facilities Management","Civic Centre","R4405"
"Wolverhampton City Council","http://opendatacommunities.org/id/metropolitan-district-council/wolverhampton","701832","Bbp.Security Services & Training Limited","1028CIV041217OE","2,504.38","Services - Security","130197957","13/12/2017","Visitor Economy","Bonfire","R4405"
"Wolverhampton City Council","http://opendatacommunities.org/id/metropolitan-district-council/wolverhampton","701832","Bbp.Security Services & Training Limited","1027CIV301117","4,957.24","Services - Security","130197547","08/12/2017","Visitor Economy","Civic & Wulfrun Outhouse & Other Comercial Events","R4405"
"Wolverhampton City Council","http://opendatacommunities.org/id/metropolitan-district-council/wolverhampton","701832","Bbp.Security Services & Training Limited","181WCC121217","3,070.00","Services - Security","130199268","21/12/2017","Facilities Management","Parkfields Office Accomodation","R4405"
"Wolverhampton City Council","http://opendatacommunities.org/id/metropolitan-district-council/wolverhampton","701832","Bbp.Security Services & Training Limited","183WCC121217","502.00","Services - Security","130199270","21/12/2017","Maintenance Programme","Asset Management Team","R4405"
"Wolverhampton City Council","http://opendatacommunities.org/id/metropolitan-district-council/wolverhampton","701832","Bbp.Security Services & Training Limited","179WCC121217","300.00","Services - Security","130199266","21/12/2017","Facilities Management","Civic Centre","R4405"
"Wolverhampton City Council","http://opendatacommunities.org/id/metropolitan-district-council/wolverhampton","701832","Bbp.Security Services & Training Limited","1024CIV301117","7,461.08","Services - Security","130197545","08/12/2017","Visitor Economy","Civic & Wulfrun Outhouse & Other Comercial Events","R4405"
"Wolverhampton City Council","http://opendatacommunities.org/id/metropolitan-district-council/wolverhampton","701832","Bbp.Security Services & Training Limited","176WCC041217","242.00","Services - Security","130197959","13/12/2017","Maintenance Programme","Asset Management Team","R4405"
"Wolverhampton City Council","http://opendatacommunities.org/id/metropolitan-district-council/wolverhampton","701832","Bbp.Security Services & Training Limited","1025CIV301117","5,331.17","Services - Security","130197546","08/12/2017","Visitor Economy","Civic & Wulfrun In-House Promotions","R4405"
"Wolverhampton City Council","http://opendatacommunities.org/id/metropolitan-district-council/wolverhampton","701832","Bbp.Security Services & Training Limited","177WCC041217","473.00","Services - Security","130197960","13/12/2017","Looked After Children","Head of Service - LAC","R4405"
"Wolverhampton City Council","http://opendatacommunities.org/id/metropolitan-district-council/wolverhampton","701832","Bbp.Security Services & Training Limited","184WCC121217","242.00","Services - Security","130199271","21/12/2017","Maintenance Programme","Asset Management Team","R4405"
"Wolverhampton City Council","http://opendatacommunities.org/id/metropolitan-district-council/wolverhampton","701832","Bbp.Security Services & Training Limited","180WCC121217","8,680.00","Services - Security","130199267","21/12/2017","Facilities Management","Management of Vacant Properties","R4405"
"Wolverhampton City Council","http://opendatacommunities.org/id/metropolitan-district-council/wolverhampton","701837","SS Peter & Paul Cath. Primary & Nursery","EYPP Autumn 2017","1,001.70","TPP - Private Nursery Education Funding","190404359","20/12/2017","Early Years","Early Years Pupil Premium","R5035"
"Wolverhampton City Council","http://opendatacommunities.org/id/metropolitan-district-council/wolverhampton","701842","Beacon Centre For The Blind","BCI2626320171130","48.30","TPP - Day Care","190398786","01/12/2017","Older People Care Purchasing","OP Care Purchasing (Spot Placements)","R5430"
"Wolverhampton City Council","http://opendatacommunities.org/id/metropolitan-district-council/wolverhampton","701842","Beacon Centre For The Blind","BCI2626320171130","48.30","TPP - Day Care","190398786","01/12/2017","Older People Care Purchasing","OP Care Purchasing (Spot Placements)","R5430"
"Wolverhampton City Council","http://opendatacommunities.org/id/metropolitan-district-council/wolverhampton","701842","Beacon Centre For The Blind","BCI2626320171130","72.45","TPP - Day Care","190398786","01/12/2017","Older People Care Purchasing","OP Care Purchasing (Spot Placements)","R5430"
"Wolverhampton City Council","http://opendatacommunities.org/id/metropolitan-district-council/wolverhampton","701842","Beacon Centre For The Blind","BCI2626320171130","96.60","TPP - Day Care","190398786","01/12/2017","Older People Care Purchasing","OP Care Purchasing (Spot Placements)","R5430"
"Wolverhampton City Council","http://opendatacommunities.org/id/metropolitan-district-council/wolverhampton","701842","Beacon Centre For The Blind","BCI2626320171130","72.45","TPP - Day Care","190398786","01/12/2017","Older People Care Purchasing","OP Care Purchasing (Spot Placements)","R5430"
"Wolverhampton City Council","http://opendatacommunities.org/id/metropolitan-district-council/wolverhampton","701842","Beacon Centre For The Blind","BCI2626320171130","96.60","TPP - Day Care","190398786","01/12/2017","Older People Care Purchasing","OP Care Purchasing (Spot Placements)","R5430"
"Wolverhampton City Council","http://opendatacommunities.org/id/metropolitan-district-council/wolverhampton","701842","Beacon Centre For The Blind","BCI2626320171130","96.60","TPP - Day Care","190398786","01/12/2017","Older People Care Purchasing","OP Care Purchasing (Spot Placements)","R5430"
"Wolverhampton City Council","http://opendatacommunities.org/id/metropolitan-district-council/wolverhampton","701842","Beacon Centre For The Blind","BCI2626320171130","96.60","TPP - Day Care","190398786","01/12/2017","Older People Care Purchasing","OP Care Purchasing (Spot Placements)","R5430"
"Wolverhampton City Council","http://opendatacommunities.org/id/metropolitan-district-council/wolverhampton","701842","Beacon Centre For The Blind","BCI2626320171130","96.60","TPP - Day Care","190398786","01/12/2017","Older People Care Purchasing","OP Care Purchasing (Spot Placements)","R5430"
"Wolverhampton City Council","http://opendatacommunities.org/id/metropolitan-district-council/wolverhampton","701842","Beacon Centre For The Blind","BCI2626320171130","48.30","TPP - Day Care","190398786","01/12/2017","Older People Care Purchasing","OP Care Purchasing (Spot Placements)","R5430"
"Wolverhampton City Council","http://opendatacommunities.org/id/metropolitan-district-council/wolverhampton","701842","Beacon Centre For The Blind","BCI2626320171130","96.60","TPP - Day Care","190398786","01/12/2017","Older People Care Purchasing","OP Care Purchasing (Spot Placements)","R5430"
"Wolverhampton City Council","http://opendatacommunities.org/id/metropolitan-district-council/wolverhampton","701842","Beacon Centre For The Blind","BCI2626320171130","72.45","TPP - Day Care","190398786","01/12/2017","Older People Care Purchasing","OP Care Purchasing (Spot Placements)","R5430"
"Wolverhampton City Council","http://opendatacommunities.org/id/metropolitan-district-council/wolverhampton","701842","Beacon Centre For The Blind","BCI2626320171130","96.60","TPP - Day Care","190398786","01/12/2017","Older People Care Purchasing","OP Care Purchasing (Spot Placements)","R5430"
"Wolverhampton City Council","http://opendatacommunities.org/id/metropolitan-district-council/wolverhampton","701842","Beacon Centre For The Blind","BCI2626320171130","48.30","TPP - Day Care","190398786","01/12/2017","Older People Care Purchasing","OP Care Purchasing (Spot Placements)","R5430"
"Wolverhampton City Council","http://opendatacommunities.org/id/metropolitan-district-council/wolverhampton","701842","Beacon Centre For The Blind","BCI2626320171130","96.60","TPP - Day Care","190398786","01/12/2017","Older People Care Purchasing","OP Care Purchasing (Spot Placements)","R5430"
"Wolverhampton City Council","http://opendatacommunities.org/id/metropolitan-district-council/wolverhampton","701842","Beacon Centre For The Blind","BCI2626320171130","72.45","TPP - Day Care","190398786","01/12/2017","Older People Care Purchasing","OP Care Purchasing (Spot Placements)","R5430"
"Wolverhampton City Council","http://opendatacommunities.org/id/metropolitan-district-council/wolverhampton","701842","Beacon Centre For The Blind","BCI2626320171130","144.90","TPP - Day Care","190398786","01/12/2017","Older People Care Purchasing","OP Care Purchasing (Spot Placements)","R5430"
"Wolverhampton City Council","http://opendatacommunities.org/id/metropolitan-district-council/wolverhampton","701842","Beacon Centre For The Blind","BCI2626320171130","72.45","TPP - Day Care","190398786","01/12/2017","Older People Care Purchasing","OP Care Purchasing (Spot Placements)","R5430"
"Wolverhampton City Council","http://opendatacommunities.org/id/metropolitan-district-council/wolverhampton","701842","Beacon Centre For The Blind","BCI2626320171130","289.80","TPP - Day Care","190398786","01/12/2017","Older People Care Purchasing","OP Care Purchasing (Spot Placements)","R5430"
"Wolverhampton City Council","http://opendatacommunities.org/id/metropolitan-district-council/wolverhampton","701842","Beacon Centre For The Blind","BCI2626320171130","72.45","TPP - Day Care","190398786","01/12/2017","Older People Care Purchasing","OP Care Purchasing (Spot Placements)","R5430"
"Wolverhampton City Council","http://opendatacommunities.org/id/metropolitan-district-council/wolverhampton","701842","Beacon Centre For The Blind","BCI2626320171130","265.65","TPP - Day Care","190398786","01/12/2017","Older People Care Purchasing","OP Care Purchasing (Spot Placements)","R5430"
"Wolverhampton City Council","http://opendatacommunities.org/id/metropolitan-district-council/wolverhampton","701842","Beacon Centre For The Blind","BCI2626320171130","72.45","TPP - Day Care","190398786","01/12/2017","Older People Care Purchasing","OP Care Purchasing (Spot Placements)","R5430"
"Wolverhampton City Council","http://opendatacommunities.org/id/metropolitan-district-council/wolverhampton","701842","Beacon Centre For The Blind","BCI2626320171130","169.05","TPP - Day Care","190398786","01/12/2017","Older People Care Purchasing","OP Care Purchasing (Spot Placements)","R5430"
"Wolverhampton City Council","http://opendatacommunities.org/id/metropolitan-district-council/wolverhampton","701842","Beacon Centre For The Blind","BCI2626320171130","458.85","TPP - Day Care","190398786","01/12/2017","Older People Care Purchasing","OP Care Purchasing (Spot Placements)","R5430"
"Wolverhampton City Council","http://opendatacommunities.org/id/metropolitan-district-council/wolverhampton","701842","Beacon Centre For The Blind","BCI2626320171130","144.90","TPP - Day Care","190398786","01/12/2017","Older People Care Purchasing","OP Care Purchasing (Spot Placements)","R5430"
"Wolverhampton City Council","http://opendatacommunities.org/id/metropolitan-district-council/wolverhampton","701842","Beacon Centre For The Blind","BCI2626320171130","96.60","TPP - Day Care","190398786","01/12/2017","Older People Care Purchasing","OP Care Purchasing (Spot Placements)","R5430"
"Wolverhampton City Council","http://opendatacommunities.org/id/metropolitan-district-council/wolverhampton","701842","Beacon Centre For The Blind","BCI2626320171130","72.45","TPP - Day Care","190398786","01/12/2017","Older People Care Purchasing","OP Care Purchasing (Spot Placements)","R5430"
"Wolverhampton City Council","http://opendatacommunities.org/id/metropolitan-district-council/wolverhampton","701842","Beacon Centre For The Blind","BCI2626320171130","193.20","TPP - Day Care","190398786","01/12/2017","Older People Care Purchasing","OP Care Purchasing (Spot Placements)","R5430"
"Wolverhampton City Council","http://opendatacommunities.org/id/metropolitan-district-council/wolverhampton","701842","Beacon Centre For The Blind","BCI2626320171130","24.15","TPP - Day Care","190398786","01/12/2017","Older People Care Purchasing","OP Care Purchasing (Spot Placements)","R5430"
"Wolverhampton City Council","http://opendatacommunities.org/id/metropolitan-district-council/wolverhampton","701842","Beacon Centre For The Blind","BCI2626320171130","96.60","TPP - Day Care","190398786","01/12/2017","Older People Care Purchasing","OP Care Purchasing (Spot Placements)","R5430"
"Wolverhampton City Council","http://opendatacommunities.org/id/metropolitan-district-council/wolverhampton","701842","Beacon Centre For The Blind","BCI2626320171130","144.90","TPP - Day Care","190398786","01/12/2017","Older People Care Purchasing","OP Care Purchasing (Spot Placements)","R5430"
"Wolverhampton City Council","http://opendatacommunities.org/id/metropolitan-district-council/wolverhampton","701842","Beacon Centre For The Blind","BCI2626320171130","48.30","TPP - Day Care","190398786","01/12/2017","Older People Care Purchasing","OP Care Purchasing (Spot Placements)","R5430"
"Wolverhampton City Council","http://opendatacommunities.org/id/metropolitan-district-council/wolverhampton","701842","Beacon Centre For The Blind","BCI2626320171130","24.15","TPP - Day Care","190398786","01/12/2017","Older People Care Purchasing","OP Care Purchasing (Spot Placements)","R5430"
"Wolverhampton City Council","http://opendatacommunities.org/id/metropolitan-district-council/wolverhampton","701842","Beacon Centre For The Blind","BCI2626320171130","120.75","TPP - Day Care","190398786","01/12/2017","Older People Care Purchasing","OP Care Purchasing (Spot Placements)","R5430"
"Wolverhampton City Council","http://opendatacommunities.org/id/metropolitan-district-council/wolverhampton","701842","Beacon Centre For The Blind","BCI2626320171130","169.05","TPP - Day Care","190398786","01/12/2017","Older People Care Purchasing","OP Care Purchasing (Spot Placements)","R5430"
"Wolverhampton City Council","http://opendatacommunities.org/id/metropolitan-district-council/wolverhampton","701842","Beacon Centre For The Blind","BCI2626320171130","72.45","TPP - Day Care","190398786","01/12/2017","Older People Care Purchasing","OP Care Purchasing (Spot Placements)","R5430"
"Wolverhampton City Council","http://opendatacommunities.org/id/metropolitan-district-council/wolverhampton","701842","Beacon Centre For The Blind","BCI2626320171130","96.60","TPP - Day Care","190398786","01/12/2017","Older People Care Purchasing","OP Care Purchasing (Spot Placements)","R5430"
"Wolverhampton City Council","http://opendatacommunities.org/id/metropolitan-district-council/wolverhampton","701842","Beacon Centre For The Blind","BCI2626320171130","72.45","TPP - Day Care","190398786","01/12/2017","Older People Care Purchasing","OP Care Purchasing (Spot Placements)","R5430"
"Wolverhampton City Council","http://opendatacommunities.org/id/metropolitan-district-council/wolverhampton","701842","Beacon Centre For The Blind","BCI2626320171130","120.75","TPP - Day Care","190398786","01/12/2017","Older People Care Purchasing","OP Care Purchasing (Spot Placements)","R5430"
"Wolverhampton City Council","http://opendatacommunities.org/id/metropolitan-district-council/wolverhampton","701842","Beacon Centre For The Blind","BCI2626320171130","96.60","TPP - Day Care","190398786","01/12/2017","Older People Care Purchasing","OP Care Purchasing (Spot Placements)","R5430"
"Wolverhampton City Council","http://opendatacommunities.org/id/metropolitan-district-council/wolverhampton","701842","Beacon Centre For The Blind","BCI2626320171130","24.15","TPP - Day Care","190398786","01/12/2017","Older People Care Purchasing","OP Care Purchasing (Spot Placements)","R5430"
"Wolverhampton City Council","http://opendatacommunities.org/id/metropolitan-district-council/wolverhampton","701842","Beacon Centre For The Blind","BCI2626320171130","193.20","TPP - Day Care","190398786","01/12/2017","Older People Care Purchasing","OP Care Purchasing (Spot Placements)","R5430"
"Wolverhampton City Council","http://opendatacommunities.org/id/metropolitan-district-council/wolverhampton","701842","Beacon Centre For The Blind","BCI2637620171227","564.80","TPP - Supported Living","190406139","28/12/2017","Older People Care Purchasing","OP Care Purchasing (Spot Placements)","R5422"
"Wolverhampton City Council","http://opendatacommunities.org/id/metropolitan-district-council/wolverhampton","701842","Beacon Centre For The Blind","BCI2637620171227","204.74","TPP - Supported Living","190406139","28/12/2017","Older People Care Purchasing","OP Care Purchasing (Spot Placements)","R5422"
"Wolverhampton City Council","http://opendatacommunities.org/id/metropolitan-district-council/wolverhampton","701842","Beacon Centre For The Blind","BCI2637620171227","1,073.12","TPP - Supported Living","190406139","28/12/2017","Older People Care Purchasing","OP Care Purchasing (Spot Placements)","R5422"
"Wolverhampton City Council","http://opendatacommunities.org/id/metropolitan-district-council/wolverhampton","701842","Beacon Centre For The Blind","BCI2639420171227","50.00","TPP - Day Care","190405982","28/12/2017","Older People Care Purchasing","OP Care Purchasing (Spot Placements)","R5430"
"Wolverhampton City Council","http://opendatacommunities.org/id/metropolitan-district-council/wolverhampton","701842","Beacon Centre For The Blind","BCI2639420171227","600.00","TPP - Day Care","190405982","28/12/2017","Older People Care Purchasing","OP Care Purchasing (Spot Placements)","R5430"
"Wolverhampton City Council","http://opendatacommunities.org/id/metropolitan-district-council/wolverhampton","701842","Beacon Centre For The Blind","BCI2639420171227","250.00","TPP - Day Care","190405982","28/12/2017","Older People Care Purchasing","OP Care Purchasing (Spot Placements)","R5430"
"Wolverhampton City Council","http://opendatacommunities.org/id/metropolitan-district-council/wolverhampton","701842","Beacon Centre For The Blind","BCI2639420171227","550.00","TPP - Day Care","190405982","28/12/2017","Older People Care Purchasing","OP Care Purchasing (Spot Placements)","R5430"
"Wolverhampton City Council","http://opendatacommunities.org/id/metropolitan-district-council/wolverhampton","701842","Beacon Centre For The Blind","BCI2626420171130","250.00","TPP - Day Care","190398787","01/12/2017","Older People Care Purchasing","OP Care Purchasing (Spot Placements)","R5430"
"Wolverhampton City Council","http://opendatacommunities.org/id/metropolitan-district-council/wolverhampton","701842","Beacon Centre For The Blind","BCI2626420171130","550.00","TPP - Day Care","190398787","01/12/2017","Older People Care Purchasing","OP Care Purchasing (Spot Placements)","R5430"
"Wolverhampton City Council","http://opendatacommunities.org/id/metropolitan-district-council/wolverhampton","701842","Beacon Centre For The Blind","BCI2626420171130","300.00","TPP - Day Care","190398787","01/12/2017","Older People Care Purchasing","OP Care Purchasing (Spot Placements)","R5430"
"Wolverhampton City Council","http://opendatacommunities.org/id/metropolitan-district-council/wolverhampton","701842","Beacon Centre For The Blind","BCI2626420171130","600.00","TPP - Day Care","190398787","01/12/2017","Older People Care Purchasing","OP Care Purchasing (Spot Placements)","R5430"
"Wolverhampton City Council","http://opendatacommunities.org/id/metropolitan-district-council/wolverhampton","701848","Bearing Man Limited","693548-00","16.50","Equipment - Purchase","190399032","01/12/2017","Fleet Services","Fleet Management","R4000"
"Wolverhampton City Council","http://opendatacommunities.org/id/metropolitan-district-council/wolverhampton","701848","Bearing Man Limited","693971-00","82.50","Equipment - Purchase","190400771","08/12/2017","Fleet Services","Fleet Management","R4000"
"Wolverhampton City Council","http://opendatacommunities.org/id/metropolitan-district-council/wolverhampton","701848","Bearing Man Limited","696566-00","29.81","Equipment - Purchase","190402038","13/12/2017","Fleet Services","Fleet Management","R4000"
"Wolverhampton City Council","http://opendatacommunities.org/id/metropolitan-district-council/wolverhampton","701867","Believe To Achieve Limited","13251","1,000.00","Services - Professional Fees","130198521","13/12/2017","Early Intervention","EIP Locality 1 - Eastfields","R4400"
"Wolverhampton City Council","http://opendatacommunities.org/id/metropolitan-district-council/wolverhampton","701880","Berendsen UK Limited","SN2772168","180.24","Protective Clothing","190399093","01/12/2017","Fleet Services","Fleet Management","R4200"
"Wolverhampton City Council","http://opendatacommunities.org/id/metropolitan-district-council/wolverhampton","701884","Berrybrook Primary School Fund A/C","T42 Autumn 17 Inst 1&2 Rising 3�s","943.20","Grant Payments","190404087","20/12/2017","Early Years","Early Years Entitlement Funding for Disadvantaged 2 Year Olds","R4700"
"Wolverhampton City Council","http://opendatacommunities.org/id/metropolitan-district-council/wolverhampton","701884","Berrybrook Primary School Fund A/C","TFT Autumn 2017 Inst 2","7,262.64","Grant Payments","190404263","20/12/2017","Early Years","Early Years Entitlement Funding for Disadvantaged 2 Year Olds","R4700"
"Wolverhampton City Council","http://opendatacommunities.org/id/metropolitan-district-council/wolverhampton","701885","Berrymans Lace Mawer","2335253","600.00","Insurance - General","130197548","20/12/2017","Audit Services","Legal Liability","R4962"
"Wolverhampton City Council","http://opendatacommunities.org/id/metropolitan-district-council/wolverhampton","701885","Berrymans Lace Mawer","2335253","115.00","Insurance - General","130197548","20/12/2017","Audit Services","Legal Liability","R4962"
"Wolverhampton City Council","http://opendatacommunities.org/id/metropolitan-district-council/wolverhampton","701944","Birmingham CC - General Fund","9002352661","693.00","Client Transport - SEN","130197750","13/12/2017","School Planning & Resources","Special - Transport","R3043"
"Wolverhampton City Council","http://opendatacommunities.org/id/metropolitan-district-council/wolverhampton","701944","Birmingham CC - General Fund","9002358970","8,333.57","Comms - Postage","130198522","27/12/2017","ICTS","Document Centre - General","R4503"
"Wolverhampton City Council","http://opendatacommunities.org/id/metropolitan-district-council/wolverhampton","701944","Birmingham CC - General Fund","9002352660","573.42","Client Transport - SEN","130197749","13/12/2017","School Planning & Resources","Special - Transport","R3043"
"Wolverhampton City Council","http://opendatacommunities.org/id/metropolitan-district-council/wolverhampton","701963","Black Country Consortium Limited","1814","15,665.87","Grant Payments","130198860","15/12/2017","Enterprise","Growth Hub Phase 2 (2015/16)","R4700"
"Wolverhampton City Council","http://opendatacommunities.org/id/metropolitan-district-council/wolverhampton","701963","Black Country Consortium Limited","1815","1,727.65","Grant Payments","130198861","15/12/2017","Enterprise","AIM for the Black Country non shared costs","R4700"
"Wolverhampton City Council","http://opendatacommunities.org/id/metropolitan-district-council/wolverhampton","701969","Black Country Skip Hire Limited","26541","170.00","Grounds Maintenance - Non Contract","130197186","06/12/2017","Schools","Lanesfield Primary School","R2076"
"Wolverhampton City Council","http://opendatacommunities.org/id/metropolitan-district-council/wolverhampton","701983","Blakenhall Neighbourhood Nursery","EYPP Autumn 2017","111.30","TPP - Private Nursery Education Funding","190404359","20/12/2017","Early Years","Early Years Pupil Premium","R5035"
"Wolverhampton City Council","http://opendatacommunities.org/id/metropolitan-district-council/wolverhampton","701983","Blakenhall Neighbourhood Nursery","TFT Autumn 2017 Inst 2","5,942.16","Grant Payments","190404263","20/12/2017","Early Years","Early Years Entitlement Funding for Disadvantaged 2 Year Olds","R4700"
"Wolverhampton City Council","http://opendatacommunities.org/id/metropolitan-district-council/wolverhampton","701983","Blakenhall Neighbourhood Nursery","4771","69.00","TPP - Child Care provided for client","130195657","06/12/2017","Adult Education","Discretionary Fund","R5034"
"Wolverhampton City Council","http://opendatacommunities.org/id/metropolitan-district-council/wolverhampton","701983","Blakenhall Neighbourhood Nursery","NEF Autumn 2017 INST 2","12,016.67","TPP - Private Nursery Education Funding","190403399","15/12/2017","Early Years","Early Years Universal Entitlement for 3 and 4 Year Olds","R5035"
"Wolverhampton City Council","http://opendatacommunities.org/id/metropolitan-district-council/wolverhampton","701996","Blue Group Interntl Limited T/A Bluecare","HSOC5669911","629.00","Agency Staff","130198527","13/12/2017","Child Protection","CIN/CP Social Work Unit - Area 7","R1100"
"Wolverhampton City Council","http://opendatacommunities.org/id/metropolitan-district-council/wolverhampton","701996","Blue Group Interntl Limited T/A Bluecare","HSOC5669439","42.30","Agency Staff","130198524","13/12/2017","Child Protection","CIN/CP Social Work Unit - Area 7","R1100"
"Wolverhampton City Council","http://opendatacommunities.org/id/metropolitan-district-council/wolverhampton","701996","Blue Group Interntl Limited T/A Bluecare","HSOC5669909","221.00","Agency Staff","130198525","13/12/2017","Child Protection","CIN/CP Social Work Unit - Area 7","R1100"
"Wolverhampton City Council","http://opendatacommunities.org/id/metropolitan-district-council/wolverhampton","701996","Blue Group Interntl Limited T/A Bluecare","HSOC5669910","4.50","Agency Staff","130198526","13/12/2017","Child Protection","CIN/CP Social Work Unit - Area 7","R1100"
"Wolverhampton City Council","http://opendatacommunities.org/id/metropolitan-district-council/wolverhampton","701996","Blue Group Interntl Limited T/A Bluecare","HSOC5673333","1,369.00","Agency Staff","130195494","08/12/2017","Child Protection","MASH","R1100"
"Wolverhampton City Council","http://opendatacommunities.org/id/metropolitan-district-council/wolverhampton","701996","Blue Group Interntl Limited T/A Bluecare","HSOC5669912","629.00","Agency Staff","130198528","13/12/2017","Child Protection","CIN/CP Social Work Unit - Area 7","R1100"
"Wolverhampton City Council","http://opendatacommunities.org/id/metropolitan-district-council/wolverhampton","701996","Blue Group Interntl Limited T/A Bluecare","HSOC5669438","408.00","Agency Staff","130198523","13/12/2017","Child Protection","CIN/CP Social Work Unit - Area 7","R1100"
"Wolverhampton City Council","http://opendatacommunities.org/id/metropolitan-district-council/wolverhampton","701996","Blue Group Interntl Limited T/A Bluecare","HSOC5670561","149.00","Agency Staff","130193664","27/12/2017","Child Protection","CIN/CP Social Work Unit - Area 2","R1100"
"Wolverhampton City Council","http://opendatacommunities.org/id/metropolitan-district-council/wolverhampton","702015","Boc Limited","3044475726","90.29","Gas","130198170","27/12/2017","Visitor Economy","The Little Civic","R2101"
"Wolverhampton City Council","http://opendatacommunities.org/id/metropolitan-district-council/wolverhampton","702015","Boc Limited","3044458103","26.16","Gas","130198169","27/12/2017","Visitor Economy","Catering Overhead Account","R2101"
"Wolverhampton City Council","http://opendatacommunities.org/id/metropolitan-district-council/wolverhampton","702015","Boc Limited","3044458102","148.95","Gas","130198168","27/12/2017","Visitor Economy","Catering Overhead Account","R2101"
"Wolverhampton City Council","http://opendatacommunities.org/id/metropolitan-district-council/wolverhampton","702015","Boc Limited","3044626590","50.56","Gas","130198172","27/12/2017","Visitor Economy","The Little Civic","R2101"
"Wolverhampton City Council","http://opendatacommunities.org/id/metropolitan-district-council/wolverhampton","702015","Boc Limited","3044615612","122.85","Gas","130198171","27/12/2017","Visitor Economy","Catering Overhead Account","R2101"
"Wolverhampton City Council","http://opendatacommunities.org/id/metropolitan-district-council/wolverhampton","702015","Boc Limited","3044634276","218.90","Gas","130198173","27/12/2017","Visitor Economy","Catering Overhead Account","R2101"
"Wolverhampton City Council","http://opendatacommunities.org/id/metropolitan-district-council/wolverhampton","702040","Bottomline Technologies Europe Limited","UKINV 013756","2,333.98","Computing - Purchase of Software","130198366","08/12/2017","Strategic Finance","Agresso System Support","R4531"
"Wolverhampton City Council","http://opendatacommunities.org/id/metropolitan-district-council/wolverhampton","702041","Boulton Travel Limited","BTWCBM1.25","2,090.00","Client Transport","130198530","27/12/2017","School Planning & Resources","Special - Transport","R3042"
"Wolverhampton City Council","http://opendatacommunities.org/id/metropolitan-district-council/wolverhampton","702041","Boulton Travel Limited","BTWCBM5.25","1,955.00","Client Transport","130198532","27/12/2017","School Planning & Resources","Special - Transport","R3042"
"Wolverhampton City Council","http://opendatacommunities.org/id/metropolitan-district-council/wolverhampton","702041","Boulton Travel Limited","BTHS24","100.00","Client Transport","130199519","29/12/2017","Headstart","B-Safe","R3042"
"Wolverhampton City Council","http://opendatacommunities.org/id/metropolitan-district-council/wolverhampton","702041","Boulton Travel Limited","BTWCTW12.3","2,860.00","Client Transport","130198533","27/12/2017","School Planning & Resources","Special - Transport","R3042"
"Wolverhampton City Council","http://opendatacommunities.org/id/metropolitan-district-council/wolverhampton","702041","Boulton Travel Limited","BTWCBM4.25","1,980.00","Client Transport","130198531","27/12/2017","School Planning & Resources","Special - Transport","R3042"
"Wolverhampton City Council","http://opendatacommunities.org/id/metropolitan-district-council/wolverhampton","702041","Boulton Travel Limited","BMV3","2,020.00","Client Transport","130198529","27/12/2017","School Planning & Resources","Special - Transport","R3042"
"Wolverhampton City Council","http://opendatacommunities.org/id/metropolitan-district-council/wolverhampton","702046","Bourne Leisure Limited","GR00327863","62.50","TPP - Short Breaks","130196042","20/12/2017","Carer Support","Carers Support","R5500"
"Wolverhampton City Council","http://opendatacommunities.org/id/metropolitan-district-council/wolverhampton","702046","Bourne Leisure Limited","GR00327863","-62.50","TPP - Short Breaks","130196042","20/12/2017","Carer Support","Carers Support","R5500"
"Wolverhampton City Council","http://opendatacommunities.org/id/metropolitan-district-council/wolverhampton","702046","Bourne Leisure Limited","GR00327863","62.50","TPP - Short Breaks","130196042","20/12/2017","Carer Support","Carers Support","R5500"
"Wolverhampton City Council","http://opendatacommunities.org/id/metropolitan-district-council/wolverhampton","702064","Brady Corporation Ltd(Seton)","9302699085","69.85","Equipment - Purchase","190399047","01/12/2017","Fleet Services","Fleet Management","R4000"
"Wolverhampton City Council","http://opendatacommunities.org/id/metropolitan-district-council/wolverhampton","702064","Brady Corporation Ltd(Seton)","9302695065","361.95","Equipment - Purchase","190399046","01/12/2017","Fleet Services","Fleet Management","R4000"
"Wolverhampton City Council","http://opendatacommunities.org/id/metropolitan-district-council/wolverhampton","702071","Brakes/Brakefresh","9269017406","507.22","Provisions (Resale)","130197962","20/12/2017","Catering","Civic Centre Catering","R4102"
"Wolverhampton City Council","http://opendatacommunities.org/id/metropolitan-district-council/wolverhampton","702071","Brakes/Brakefresh","9269017406","-507.22","Provisions (Resale)","130197962","20/12/2017","Catering","Civic Centre Catering","R4102"
"Wolverhampton City Council","http://opendatacommunities.org/id/metropolitan-district-council/wolverhampton","702071","Brakes/Brakefresh","9269017406","65.24","Provisions (Resale)","130197962","20/12/2017","Catering","Civic Centre Catering","R4102"
"Wolverhampton City Council","http://opendatacommunities.org/id/metropolitan-district-council/wolverhampton","702071","Brakes/Brakefresh","9269017406","441.98","Provisions (Resale)","130197962","20/12/2017","Catering","Civic Centre Catering","R4102"
"Wolverhampton City Council","http://opendatacommunities.org/id/metropolitan-district-council/wolverhampton","702071","Brakes/Brakefresh","74594326","81.00","Provisions (Resale)","130197961","20/12/2017","Catering","Civic Centre Catering","R4102"
"Wolverhampton City Council","http://opendatacommunities.org/id/metropolitan-district-council/wolverhampton","702071","Brakes/Brakefresh","74594326","-81.00","Provisions (Resale)","130197961","20/12/2017","Catering","Civic Centre Catering","R4102"
"Wolverhampton City Council","http://opendatacommunities.org/id/metropolitan-district-council/wolverhampton","702071","Brakes/Brakefresh","74594326","81.00","Provisions (Resale)","130197961","20/12/2017","Catering","Civic Centre Catering","R4102"
"Wolverhampton City Council","http://opendatacommunities.org/id/metropolitan-district-council/wolverhampton","702071","Brakes/Brakefresh","9255731125","110.49","Provisions (Resale)","130196709","01/12/2017","Catering","Civic Centre Catering","R4102"
"Wolverhampton City Council","http://opendatacommunities.org/id/metropolitan-district-council/wolverhampton","702071","Brakes/Brakefresh","9255731125","-110.49","Provisions (Resale)","130196709","01/12/2017","Catering","Civic Centre Catering","R4102"
"Wolverhampton City Council","http://opendatacommunities.org/id/metropolitan-district-council/wolverhampton","702071","Brakes/Brakefresh","9255731125","17.70","Provisions (Resale)","130196709","01/12/2017","Catering","Civic Centre Catering","R4102"
"Wolverhampton City Council","http://opendatacommunities.org/id/metropolitan-district-council/wolverhampton","702071","Brakes/Brakefresh","9255731125","92.79","Provisions (Resale)","130196709","01/12/2017","Catering","Civic Centre Catering","R4102"
"Wolverhampton City Council","http://opendatacommunities.org/id/metropolitan-district-council/wolverhampton","702071","Brakes/Brakefresh","9269017407","44.56","Provisions (Resale)","130197963","20/12/2017","Catering","Civic Centre Catering","R4102"
"Wolverhampton City Council","http://opendatacommunities.org/id/metropolitan-district-council/wolverhampton","702071","Brakes/Brakefresh","9269017407","-44.56","Provisions (Resale)","130197963","20/12/2017","Catering","Civic Centre Catering","R4102"
"Wolverhampton City Council","http://opendatacommunities.org/id/metropolitan-district-council/wolverhampton","702071","Brakes/Brakefresh","9269017407","44.56","Provisions (Resale)","130197963","20/12/2017","Catering","Civic Centre Catering","R4102"
"Wolverhampton City Council","http://opendatacommunities.org/id/metropolitan-district-council/wolverhampton","702071","Brakes/Brakefresh","74612714","64.20","Provisions (Resale)","130198708","27/12/2017","Catering","Civic Centre Catering","R4102"
"Wolverhampton City Council","http://opendatacommunities.org/id/metropolitan-district-council/wolverhampton","702071","Brakes/Brakefresh","74612714","-64.20","Provisions (Resale)","130198708","27/12/2017","Catering","Civic Centre Catering","R4102"
"Wolverhampton City Council","http://opendatacommunities.org/id/metropolitan-district-council/wolverhampton","702071","Brakes/Brakefresh","74612714","64.20","Provisions (Resale)","130198708","27/12/2017","Catering","Civic Centre Catering","R4102"
"Wolverhampton City Council","http://opendatacommunities.org/id/metropolitan-district-council/wolverhampton","702071","Brakes/Brakefresh","9255736290","115.59","Provisions (Resale)","130196710","06/12/2017","Catering","Civic Centre Catering","R4102"
"Wolverhampton City Council","http://opendatacommunities.org/id/metropolitan-district-council/wolverhampton","702071","Brakes/Brakefresh","9255736290","-115.59","Provisions (Resale)","130196710","06/12/2017","Catering","Civic Centre Catering","R4102"
"Wolverhampton City Council","http://opendatacommunities.org/id/metropolitan-district-council/wolverhampton","702071","Brakes/Brakefresh","9255736290","115.59","Provisions (Resale)","130196710","06/12/2017","Catering","Civic Centre Catering","R4102"
"Wolverhampton City Council","http://opendatacommunities.org/id/metropolitan-district-council/wolverhampton","702071","Brakes/Brakefresh","9269025184","459.60","Provisions (Resale)","130198709","27/12/2017","Catering","Civic Centre Catering","R4102"
"Wolverhampton City Council","http://opendatacommunities.org/id/metropolitan-district-council/wolverhampton","702071","Brakes/Brakefresh","9269025184","-459.60","Provisions (Resale)","130198709","27/12/2017","Catering","Civic Centre Catering","R4102"
"Wolverhampton City Council","http://opendatacommunities.org/id/metropolitan-district-council/wolverhampton","702071","Brakes/Brakefresh","9269025184","459.60","Provisions (Resale)","130198709","27/12/2017","Catering","Civic Centre Catering","R4102"
"Wolverhampton City Council","http://opendatacommunities.org/id/metropolitan-district-council/wolverhampton","702093","Briggs Equiptment UK Limited","107156069","413.33","Hire of Vehicles","130197223","13/12/2017","Markets","Wholesale Market Facilities Management","R3200"
"Wolverhampton City Council","http://opendatacommunities.org/id/metropolitan-district-council/wolverhampton","702104","Bristow & Sutor","182956","80.91","Bailiff Action","130198854","13/12/2017","Parking Services","Parking Enforcement","R9382"
"Wolverhampton City Council","http://opendatacommunities.org/id/metropolitan-district-council/wolverhampton","702105","Bristows Club & School","187087 VAT ONLY","173.00","Bailiff Action","130198355","08/12/2017","Parking Services","Parking Enforcement","R9382"
"Wolverhampton City Council","http://opendatacommunities.org/id/metropolitan-district-council/wolverhampton","702105","Bristows Club & School","187282 VAT ONLY","75.00","Bailiff Action","130198353","08/12/2017","Parking Services","Parking Enforcement","R9382"
"Wolverhampton City Council","http://opendatacommunities.org/id/metropolitan-district-council/wolverhampton","702105","Bristows Club & School","186559 VAT ONLY","175.99","Bailiff Action","130198848","13/12/2017","Parking Services","Parking Enforcement","R9382"
"Wolverhampton City Council","http://opendatacommunities.org/id/metropolitan-district-council/wolverhampton","702120","British Red Cross","N1145818","116.00","Training Expenses","130198367","08/12/2017","Looked After Children","LAC Education Team (LACE)","R1650"
"Wolverhampton City Council","http://opendatacommunities.org/id/metropolitan-district-council/wolverhampton","702126","BT (Phone Bills)","CM61647061 Q0776S(1)","40.00","Fixtures and Fittings - R&M","190401904","13/12/2017","Maintenance Programme","Centralised R&M","R2502"
"Wolverhampton City Council","http://opendatacommunities.org/id/metropolitan-district-council/wolverhampton","702126","BT (Phone Bills)","CM61647061 Q0776S","90.90","Fixtures and Fittings - R&M","190401903","13/12/2017","Maintenance Programme","Centralised R&M","R2502"
"Wolverhampton City Council","http://opendatacommunities.org/id/metropolitan-district-council/wolverhampton","702126","BT (Phone Bills)","CM59371556 Q11599","97.09","Fixtures and Fittings - R&M","190405840","27/12/2017","Facilities Management","Caretakers Community Centre","R2502"
"Wolverhampton City Council","http://opendatacommunities.org/id/metropolitan-district-council/wolverhampton","702126","BT (Phone Bills)","CM59126723 Q115LK","90.90","Fixtures and Fittings - R&M","190405839","27/12/2017","Facilities Management","Caretakers Community Centre","R2502"
"Wolverhampton City Council","http://opendatacommunities.org/id/metropolitan-district-council/wolverhampton","702126","BT (Phone Bills)","CM61646492 Q076TK(2)","357.29","Fixtures and Fittings - R&M","190405945","27/12/2017","Facilities Management","Caretakers Community Centre","R2502"
"Wolverhampton City Council","http://opendatacommunities.org/id/metropolitan-district-council/wolverhampton","702126","BT (Phone Bills)","CM60725087 Q092F9","90.90","Fixtures and Fittings - R&M","190405838","27/12/2017","Facilities Management","Caretakers Community Centre","R2502"
"Wolverhampton City Council","http://opendatacommunities.org/id/metropolitan-district-council/wolverhampton","702126","BT (Phone Bills)","CM61643549 Q077LK(1)","40.00","Fixtures and Fittings - R&M","190399833","06/12/2017","Maintenance Programme","Centralised R&M","R2502"
"Wolverhampton City Council","http://opendatacommunities.org/id/metropolitan-district-council/wolverhampton","702126","BT (Phone Bills)","CM59490552 Q113WK","102.70","Fixtures and Fittings - R&M","190405841","27/12/2017","Facilities Management","Caretakers Community Centre","R2502"
"Wolverhampton City Council","http://opendatacommunities.org/id/metropolitan-district-council/wolverhampton","702126","BT (Phone Bills)","CM59020054 Q116MP","90.90","Fixtures and Fittings - R&M","190405845","27/12/2017","Maintenance Programme","Centralised R&M","R2502"
"Wolverhampton City Council","http://opendatacommunities.org/id/metropolitan-district-council/wolverhampton","702126","BT (Phone Bills)","CM66892145 Q026SD","90.90","Fixtures and Fittings - R&M","190405942","27/12/2017","Facilities Management","Caretakers Community Centre","R2502"
"Wolverhampton City Council","http://opendatacommunities.org/id/metropolitan-district-council/wolverhampton","702126","BT (Phone Bills)","CM59609271 Q111LO","90.90","Fixtures and Fittings - R&M","190405837","27/12/2017","Facilities Management","Caretakers Community Centre","R2502"
"Wolverhampton City Council","http://opendatacommunities.org/id/metropolitan-district-council/wolverhampton","702126","BT (Phone Bills)","CM62916745 Q058GZ","132.20","Fixtures and Fittings - R&M","190401901","13/12/2017","Maintenance Programme","Centralised R&M","R2502"
"Wolverhampton City Council","http://opendatacommunities.org/id/metropolitan-district-council/wolverhampton","702126","BT (Phone Bills)","CM63913030 Q046DK","90.90","Fixtures and Fittings - R&M","190403048","15/12/2017","Cleaning","Public Conveniences","R2502"
"Wolverhampton City Council","http://opendatacommunities.org/id/metropolitan-district-council/wolverhampton","702126","BT (Phone Bills)","CM62916745 Q058GZ(1)","40.00","Fixtures and Fittings - R&M","190401902","13/12/2017","Maintenance Programme","Centralised R&M","R2502"
"Wolverhampton City Council","http://opendatacommunities.org/id/metropolitan-district-council/wolverhampton","702126","BT (Phone Bills)","CM61646492 Q076TK","90.90","Fixtures and Fittings - R&M","190405943","27/12/2017","Facilities Management","Caretakers Community Centre","R2502"
"Wolverhampton City Council","http://opendatacommunities.org/id/metropolitan-district-council/wolverhampton","702126","BT (Phone Bills)","CM59317141 Q116T7","90.90","Fixtures and Fittings - R&M","190405843","27/12/2017","Facilities Management","Management of Vacant Properties","R2502"
"Wolverhampton City Council","http://opendatacommunities.org/id/metropolitan-district-council/wolverhampton","702126","BT (Phone Bills)","CM59931185 Q1049B","96.77","Fixtures and Fittings - R&M","190405842","27/12/2017","Facilities Management","Caretakers Community Centre","R2502"
"Wolverhampton City Council","http://opendatacommunities.org/id/metropolitan-district-council/wolverhampton","702126","BT (Phone Bills)","CM61643549 Q077LK","104.10","Fixtures and Fittings - R&M","190399832","06/12/2017","Maintenance Programme","Centralised R&M","R2502"
"Wolverhampton City Council","http://opendatacommunities.org/id/metropolitan-district-council/wolverhampton","702126","BT (Phone Bills)","VP42501170 Q07501","2,488.61","Comms - Telephone Rental","130198987","15/12/2017","Independent Living Service","Telecare","R4504"
"Wolverhampton City Council","http://opendatacommunities.org/id/metropolitan-district-council/wolverhampton","702126","BT (Phone Bills)","CM61646492 Q076TK(1)","40.00","Fixtures and Fittings - R&M","190405944","27/12/2017","Facilities Management","Caretakers Community Centre","R2502"
"Wolverhampton City Council","http://opendatacommunities.org/id/metropolitan-district-council/wolverhampton","702126","BT (Phone Bills)","Q059 1U","130.00","Comms - Telephone Rental","130197045","13/12/2017","Adult Education","Direct Delivery Team ( L.& D.)","R4504"
"Wolverhampton City Council","http://opendatacommunities.org/id/metropolitan-district-council/wolverhampton","702126","BT (Phone Bills)","Q059 1U","-130.00","Comms - Telephone Rental","130197045","13/12/2017","Adult Education","Direct Delivery Team ( L.& D.)","R4504"
"Wolverhampton City Council","http://opendatacommunities.org/id/metropolitan-district-council/wolverhampton","702126","BT (Phone Bills)","Q059 1U","90.00","Comms - Telephone Rental","130197045","13/12/2017","Adult Education","Direct Delivery Team ( L.& D.)","R4504"
"Wolverhampton City Council","http://opendatacommunities.org/id/metropolitan-district-council/wolverhampton","702126","BT (Phone Bills)","Q059 1U","40.00","Comms - Telephone Rental","130197045","13/12/2017","Adult Education","Direct Delivery Team ( L.& D.)","R4504"
"Wolverhampton City Council","http://opendatacommunities.org/id/metropolitan-district-council/wolverhampton","702126","BT (Phone Bills)","CM62195523 Q071&F","90.90","Fixtures and Fittings - R&M","190405844","27/12/2017","Maintenance Programme","Centralised R&M","R2502"
"Wolverhampton City Council","http://opendatacommunities.org/id/metropolitan-district-council/wolverhampton","702126","BT (Phone Bills)","CM59370308 Q115NQ","90.90","Fixtures and Fittings - R&M","190405835","27/12/2017","Facilities Management","Caretakers Community Centre","R2502"
"Wolverhampton City Council","http://opendatacommunities.org/id/metropolitan-district-council/wolverhampton","702126","BT (Phone Bills)","CM59297898 Q115K7","95.58","Fixtures and Fittings - R&M","190405836","27/12/2017","Facilities Management","Caretakers Community Centre","R2502"
"Wolverhampton City Council","http://opendatacommunities.org/id/metropolitan-district-council/wolverhampton","702157","Browne Jacobson Llp","371384","25,470.31","Services - Professional Fees","130197046","20/12/2017","Human Resources","Equal Pay","R4400"
"Wolverhampton City Council","http://opendatacommunities.org/id/metropolitan-district-council/wolverhampton","702157","Browne Jacobson Llp","371503","420.50","Services - Professional Fees","130196373","13/12/2017","Human Resources","Equal Pay","R4400"
"Wolverhampton City Council","http://opendatacommunities.org/id/metropolitan-district-council/wolverhampton","702157","Browne Jacobson Llp","My ref: TP140182/LG Your ref: 368484","2,056.50","Insurance - General","190404345","20/12/2017","Audit Services","Legal Liability","R4962"
"Wolverhampton City Council","http://opendatacommunities.org/id/metropolitan-district-council/wolverhampton","702160","Broxap Limited","INV220652","691.00","Equipment - Purchase","130197752","27/12/2017","Environmental Maintenance","Management & Administration","R4000"
"Wolverhampton City Council","http://opendatacommunities.org/id/metropolitan-district-council/wolverhampton","702160","Broxap Limited","INV220681","3,220.00","Construction and Conversion","130197753","27/12/2017","","Safety Programme","C1100"
"Wolverhampton City Council","http://opendatacommunities.org/id/metropolitan-district-council/wolverhampton","702160","Broxap Limited","INV219605","799.00","Equipment - Purchase","130195314","13/12/2017","Environmental Maintenance","Management & Administration","R4000"
"Wolverhampton City Council","http://opendatacommunities.org/id/metropolitan-district-council/wolverhampton","702160","Broxap Limited","INV219605","-799.00","Equipment - Purchase","130195314","13/12/2017","Environmental Maintenance","Management & Administration","R4000"
"Wolverhampton City Council","http://opendatacommunities.org/id/metropolitan-district-council/wolverhampton","702160","Broxap Limited","INV219605","798.00","Equipment - Purchase","130195314","13/12/2017","Environmental Maintenance","Management & Administration","R4000"
"Wolverhampton City Council","http://opendatacommunities.org/id/metropolitan-district-council/wolverhampton","702172","BT Global","0790233263 01 November 2017","101.56","Comms - Telephone Rental","190404303","20/12/2017","Management and Administration","Public Health Support Costs","R4504"
"Wolverhampton City Council","http://opendatacommunities.org/id/metropolitan-district-council/wolverhampton","702172","BT Global","456137","5,114.60","Equipment - Hire","130193820","01/12/2017","Operation & Maintenance of Existing Network","Walsall Recovery Costs","R4001"
"Wolverhampton City Council","http://opendatacommunities.org/id/metropolitan-district-council/wolverhampton","702179","Bulk Minerals Limited","001789","208.55","Materials","130197396","20/12/2017","Highways Maintenance","Planned Highways Maintenance","R4007"
"Wolverhampton City Council","http://opendatacommunities.org/id/metropolitan-district-council/wolverhampton","702181","United Living","CSIN000317","53,403.00","R&M - Departmental planned (external)","130199530","27/12/2017","Housing Revenue Account","Amounts to be Settled with Wolverhampton Homes","R2001"
"Wolverhampton City Council","http://opendatacommunities.org/id/metropolitan-district-council/wolverhampton","702181","United Living","CSIN000295","20,000.00","Construction and Conversion","130198865","13/12/2017","","Decent Homes - Stock Improvements","C1100"
"Wolverhampton City Council","http://opendatacommunities.org/id/metropolitan-district-council/wolverhampton","702181","United Living","CSIN000300","36,610.00","Construction and Conversion","130198176","06/12/2017","","Refurbishment of Voids","C1100"
"Wolverhampton City Council","http://opendatacommunities.org/id/metropolitan-district-council/wolverhampton","702181","United Living","CSIN000312","91,627.00","Construction and Conversion","130199526","27/12/2017","","New Build infill schemes","C1100"
"Wolverhampton City Council","http://opendatacommunities.org/id/metropolitan-district-council/wolverhampton","702181","United Living","CSIN000313","52,805.00","Construction and Conversion","130199527","27/12/2017","","Decent Homes - Stock Improvements","C1100"
"Wolverhampton City Council","http://opendatacommunities.org/id/metropolitan-district-council/wolverhampton","702181","United Living","CSIN000292","18,000.00","Construction and Conversion","130198863","13/12/2017","","Decent Homes - Stock Improvements","C1100"
"Wolverhampton City Council","http://opendatacommunities.org/id/metropolitan-district-council/wolverhampton","702181","United Living","CSIN000298","11,000.00","Construction and Conversion","130198867","15/12/2017","","Structural works","C1100"
"Wolverhampton City Council","http://opendatacommunities.org/id/metropolitan-district-council/wolverhampton","702181","United Living","CSIN000297","15,000.00","Construction and Conversion","130198866","13/12/2017","","Decent Homes - Stock Improvements","C1100"
"Wolverhampton City Council","http://opendatacommunities.org/id/metropolitan-district-council/wolverhampton","702181","United Living","CSIN000314","666,708.00","Construction and Conversion","130199528","27/12/2017","","Decent Homes - Stock Improvements","C1100"
"Wolverhampton City Council","http://opendatacommunities.org/id/metropolitan-district-council/wolverhampton","702181","United Living","CSIN000315","200,033.00","Construction and Conversion","130199529","27/12/2017","","Refurbishment of Voids","C1100"
"Wolverhampton City Council","http://opendatacommunities.org/id/metropolitan-district-council/wolverhampton","702181","United Living","CSIN000294","30,000.00","Construction and Conversion","130198174","06/12/2017","","Decent Homes - Stock Condition","C1100"
"Wolverhampton City Council","http://opendatacommunities.org/id/metropolitan-district-council/wolverhampton","702181","United Living","CSIN000293","12,000.00","Construction and Conversion","130198864","13/12/2017","","Decent Homes - Stock Condition","C1100"
"Wolverhampton City Council","http://opendatacommunities.org/id/metropolitan-district-council/wolverhampton","702181","United Living","CSIN000331","60,400.00","Construction and Conversion","130199531","27/12/2017","","Structural works","C1100"
"Wolverhampton City Council","http://opendatacommunities.org/id/metropolitan-district-council/wolverhampton","702181","United Living","CSIN000296","49,000.00","Construction and Conversion","130198175","06/12/2017","","Refurbishment of Voids","C1100"
"Wolverhampton City Council","http://opendatacommunities.org/id/metropolitan-district-council/wolverhampton","702201","Bury M.B.C","34056871","5,786.67","Client Transport - SEN","130197754","06/12/2017","School Planning & Resources","Special - Transport","R3043"
"Wolverhampton City Council","http://opendatacommunities.org/id/metropolitan-district-council/wolverhampton","702210","Accord Housing (Bushbury Triangle)","SUNV/00052399","400.00","Catering","130198368","08/12/2017","Skills","IMPACT","R4100"
"Wolverhampton City Council","http://opendatacommunities.org/id/metropolitan-district-council/wolverhampton","702231","Bytes Software Services Limited","496280","1,205.82","Computing - Purchase of Software","130197225","13/12/2017","Digital Transformation Programme","Digital Transformation Programme (Recharge to Capital)","R4531"
"Wolverhampton City Council","http://opendatacommunities.org/id/metropolitan-district-council/wolverhampton","702231","Bytes Software Services Limited","496279","323.96","Computing - Licences","130197224","13/12/2017","Digital Transformation Programme","Digital Transformation Programme (Recharge to Capital)","R4535"
"Wolverhampton City Council","http://opendatacommunities.org/id/metropolitan-district-council/wolverhampton","702231","Bytes Software Services Limited","496279","121.73","Computing - Licences","130197224","13/12/2017","Digital Transformation Programme","Digital Transformation Programme (Recharge to Capital)","R4535"
"Wolverhampton City Council","http://opendatacommunities.org/id/metropolitan-district-council/wolverhampton","702231","Bytes Software Services Limited","496279","311.50","Computing - Licences","130197224","13/12/2017","Digital Transformation Programme","Digital Transformation Programme (Recharge to Capital)","R4535"
"Wolverhampton City Council","http://opendatacommunities.org/id/metropolitan-district-council/wolverhampton","702231","Bytes Software Services Limited","496279","157.78","Computing - Licences","130197224","13/12/2017","Digital Transformation Programme","Digital Transformation Programme (Recharge to Capital)","R4535"
"Wolverhampton City Council","http://opendatacommunities.org/id/metropolitan-district-council/wolverhampton","702231","Bytes Software Services Limited","496404","149.50","Plant, Equipment, Machinery & Computer Hardware","130197227","13/12/2017","","ICT General Programme","C3000"
"Wolverhampton City Council","http://opendatacommunities.org/id/metropolitan-district-council/wolverhampton","702231","Bytes Software Services Limited","496404","57.90","Plant, Equipment, Machinery & Computer Hardware","130197227","13/12/2017","","ICT General Programme","C3000"
"Wolverhampton City Council","http://opendatacommunities.org/id/metropolitan-district-council/wolverhampton","702231","Bytes Software Services Limited","496404","13.30","Plant, Equipment, Machinery & Computer Hardware","130197227","13/12/2017","","ICT General Programme","C3000"
"Wolverhampton City Council","http://opendatacommunities.org/id/metropolitan-district-council/wolverhampton","702231","Bytes Software Services Limited","496993","2,616.72","Computing - Purchase of Software","130197230","27/12/2017","Corporate Communications","Insight and Performance","R4531"
"Wolverhampton City Council","http://opendatacommunities.org/id/metropolitan-district-council/wolverhampton","702231","Bytes Software Services Limited","496403","4,768.40","Plant, Equipment, Machinery & Computer Hardware","130197226","13/12/2017","","ICT General Programme","C3000"
"Wolverhampton City Council","http://opendatacommunities.org/id/metropolitan-district-council/wolverhampton","702231","Bytes Software Services Limited","496184","56,681.83","Computing - Licences","130195874","13/12/2017","Digital Transformation Programme","Digital Transformation Programme","R4535"
"Wolverhampton City Council","http://opendatacommunities.org/id/metropolitan-district-council/wolverhampton","702231","Bytes Software Services Limited","491938","171.70","Plant, Equipment, Machinery & Computer Hardware","130194143","06/12/2017","","ICT General Programme","C3000"
"Wolverhampton City Council","http://opendatacommunities.org/id/metropolitan-district-council/wolverhampton","702231","Bytes Software Services Limited","496593","78.22","Plant, Equipment, Machinery & Computer Hardware","130197229","20/12/2017","","ICT General Programme","C3000"
"Wolverhampton City Council","http://opendatacommunities.org/id/metropolitan-district-council/wolverhampton","702231","Bytes Software Services Limited","496498","5,271.63","Computing - Purchase of Software","130197228","15/12/2017","Digital Transformation Programme","Digital Transformation Programme (Recharge to Capital)","R4531"
"Wolverhampton City Council","http://opendatacommunities.org/id/metropolitan-district-council/wolverhampton","702249","C M Community Care Services Limited","EWEB01720171227","197.68","TPP - Home Care","190405989","28/12/2017","Older People Care Purchasing","OP Care Purchasing (Spot Placements)","R5420"
"Wolverhampton City Council","http://opendatacommunities.org/id/metropolitan-district-council/wolverhampton","702249","C M Community Care Services Limited","EWEB01720171227","197.68","TPP - Home Care","190405989","28/12/2017","Older People Care Purchasing","OP Care Purchasing (Spot Placements)","R5420"
"Wolverhampton City Council","http://opendatacommunities.org/id/metropolitan-district-council/wolverhampton","702249","C M Community Care Services Limited","APEL00420171213","197.68","TPP - Home Care","190402748","15/12/2017","Older People Care Purchasing","OP Care Purchasing (Spot Placements)","R5420"
"Wolverhampton City Council","http://opendatacommunities.org/id/metropolitan-district-council/wolverhampton","702249","C M Community Care Services Limited","EWEB01620171213","183.56","TPP - Home Care","190402750","15/12/2017","Older People Care Purchasing","OP Care Purchasing (Spot Placements)","R5420"
"Wolverhampton City Council","http://opendatacommunities.org/id/metropolitan-district-council/wolverhampton","702249","C M Community Care Services Limited","APEL00420171213","197.68","TPP - Home Care","190402748","15/12/2017","Older People Care Purchasing","OP Care Purchasing (Spot Placements)","R5420"
"Wolverhampton City Council","http://opendatacommunities.org/id/metropolitan-district-council/wolverhampton","702249","C M Community Care Services Limited","EWEB01620171213","197.68","TPP - Home Care","190402750","15/12/2017","Older People Care Purchasing","OP Care Purchasing (Spot Placements)","R5420"
"Wolverhampton City Council","http://opendatacommunities.org/id/metropolitan-district-council/wolverhampton","702249","C M Community Care Services Limited","RTRO01320171213","197.68","TPP - Home Care","190402759","15/12/2017","Older People Care Purchasing","OP Care Purchasing (Spot Placements)","R5420"
"Wolverhampton City Council","http://opendatacommunities.org/id/metropolitan-district-council/wolverhampton","702249","C M Community Care Services Limited","RTRO01320171213","197.68","TPP - Home Care","190402759","15/12/2017","Older People Care Purchasing","OP Care Purchasing (Spot Placements)","R5420"
"Wolverhampton City Council","http://opendatacommunities.org/id/metropolitan-district-council/wolverhampton","702249","C M Community Care Services Limited","JGAL00120171214","98.84","TPP - Home Care","190403139","15/12/2017","Older People Care Purchasing","OP Care Purchasing (Spot Placements)","R5420"
"Wolverhampton City Council","http://opendatacommunities.org/id/metropolitan-district-council/wolverhampton","702249","C M Community Care Services Limited","JGAL00120171214","141.20","TPP - Home Care","190403139","15/12/2017","Older People Care Purchasing","OP Care Purchasing (Spot Placements)","R5420"
"Wolverhampton City Council","http://opendatacommunities.org/id/metropolitan-district-council/wolverhampton","702249","C M Community Care Services Limited","RTRO01420171227","197.68","TPP - Home Care","190405999","28/12/2017","Older People Care Purchasing","OP Care Purchasing (Spot Placements)","R5420"
"Wolverhampton City Council","http://opendatacommunities.org/id/metropolitan-district-council/wolverhampton","702249","C M Community Care Services Limited","RTRO01420171227","197.68","TPP - Home Care","190405999","28/12/2017","Older People Care Purchasing","OP Care Purchasing (Spot Placements)","R5420"
"Wolverhampton City Council","http://opendatacommunities.org/id/metropolitan-district-council/wolverhampton","702249","C M Community Care Services Limited","LCON012520171227","247.10","TPP - Home Care","190405995","28/12/2017","Physical Disabilities Care Purchasing","PD Care Purchasing (Spot Placements)","R5420"
"Wolverhampton City Council","http://opendatacommunities.org/id/metropolitan-district-council/wolverhampton","702249","C M Community Care Services Limited","LCON012520171227","247.10","TPP - Home Care","190405995","28/12/2017","Physical Disabilities Care Purchasing","PD Care Purchasing (Spot Placements)","R5420"
"Wolverhampton City Council","http://opendatacommunities.org/id/metropolitan-district-council/wolverhampton","702249","C M Community Care Services Limited","LAGG02320171212","197.68","TPP - Home Care","190402079","13/12/2017","Older People Care Purchasing","OP Care Purchasing (Spot Placements)","R5420"
"Wolverhampton City Council","http://opendatacommunities.org/id/metropolitan-district-council/wolverhampton","702249","C M Community Care Services Limited","RDOD07720171212","197.68","TPP - Home Care","190402082","13/12/2017","Older People Care Purchasing","OP Care Purchasing (Spot Placements)","R5420"
"Wolverhampton City Council","http://opendatacommunities.org/id/metropolitan-district-council/wolverhampton","702249","C M Community Care Services Limited","LAGG02320171212","197.68","TPP - Home Care","190402079","13/12/2017","Older People Care Purchasing","OP Care Purchasing (Spot Placements)","R5420"
"Wolverhampton City Council","http://opendatacommunities.org/id/metropolitan-district-council/wolverhampton","702249","C M Community Care Services Limited","APEL00320171212","197.68","TPP - Home Care","190402074","13/12/2017","Older People Care Purchasing","OP Care Purchasing (Spot Placements)","R5420"
"Wolverhampton City Council","http://opendatacommunities.org/id/metropolitan-district-council/wolverhampton","702249","C M Community Care Services Limited","APEL00320171212","197.68","TPP - Home Care","190402074","13/12/2017","Older People Care Purchasing","OP Care Purchasing (Spot Placements)","R5420"
"Wolverhampton City Council","http://opendatacommunities.org/id/metropolitan-district-council/wolverhampton","702249","C M Community Care Services Limited","APEL00220171207","197.68","TPP - Home Care","190400553","08/12/2017","Older People Care Purchasing","OP Care Purchasing (Spot Placements)","R5420"
"Wolverhampton City Council","http://opendatacommunities.org/id/metropolitan-district-council/wolverhampton","702249","C M Community Care Services Limited","APEL00220171207","197.68","TPP - Home Care","190400553","08/12/2017","Older People Care Purchasing","OP Care Purchasing (Spot Placements)","R5420"
"Wolverhampton City Council","http://opendatacommunities.org/id/metropolitan-district-council/wolverhampton","702249","C M Community Care Services Limited","LAGG02220171207","197.68","TPP - Home Care","190400558","08/12/2017","Older People Care Purchasing","OP Care Purchasing (Spot Placements)","R5420"
"Wolverhampton City Council","http://opendatacommunities.org/id/metropolitan-district-council/wolverhampton","702249","C M Community Care Services Limited","LAGG02220171207","197.68","TPP - Home Care","190400558","08/12/2017","Older People Care Purchasing","OP Care Purchasing (Spot Placements)","R5420"
"Wolverhampton City Council","http://opendatacommunities.org/id/metropolitan-district-council/wolverhampton","702249","C M Community Care Services Limited","RDOD07620171207","197.68","TPP - Home Care","190400562","08/12/2017","Older People Care Purchasing","OP Care Purchasing (Spot Placements)","R5420"
"Wolverhampton City Council","http://opendatacommunities.org/id/metropolitan-district-council/wolverhampton","702249","C M Community Care Services Limited","APEL20171227","197.68","TPP - Home Care","190405987","28/12/2017","Older People Care Purchasing","OP Care Purchasing (Spot Placements)","R5420"
"Wolverhampton City Council","http://opendatacommunities.org/id/metropolitan-district-council/wolverhampton","702249","C M Community Care Services Limited","APEL20171227","197.68","TPP - Home Care","190405987","28/12/2017","Older People Care Purchasing","OP Care Purchasing (Spot Placements)","R5420"
"Wolverhampton City Council","http://opendatacommunities.org/id/metropolitan-district-council/wolverhampton","702249","C M Community Care Services Limited","DRYA07020171212","172.97","TPP - Home Care","190402075","13/12/2017","Older People Care Purchasing","OP Care Purchasing (Spot Placements)","R5420"
"Wolverhampton City Council","http://opendatacommunities.org/id/metropolitan-district-council/wolverhampton","702249","C M Community Care Services Limited","DRYA07020171212","172.97","TPP - Home Care","190402075","13/12/2017","Older People Care Purchasing","OP Care Purchasing (Spot Placements)","R5420"
"Wolverhampton City Council","http://opendatacommunities.org/id/metropolitan-district-council/wolverhampton","702249","C M Community Care Services Limited","EWEB01520171212","197.68","TPP - Home Care","190402076","13/12/2017","Older People Care Purchasing","OP Care Purchasing (Spot Placements)","R5420"
"Wolverhampton City Council","http://opendatacommunities.org/id/metropolitan-district-council/wolverhampton","702249","C M Community Care Services Limited","EWEB01520171212","197.68","TPP - Home Care","190402076","13/12/2017","Older People Care Purchasing","OP Care Purchasing (Spot Placements)","R5420"
"Wolverhampton City Council","http://opendatacommunities.org/id/metropolitan-district-council/wolverhampton","702249","C M Community Care Services Limited","PWER00820171212","197.68","TPP - Home Care","190402081","13/12/2017","Older People Care Purchasing","OP Care Purchasing (Spot Placements)","R5420"
"Wolverhampton City Council","http://opendatacommunities.org/id/metropolitan-district-council/wolverhampton","702249","C M Community Care Services Limited","PWER00820171212","197.68","TPP - Home Care","190402081","13/12/2017","Older People Care Purchasing","OP Care Purchasing (Spot Placements)","R5420"
"Wolverhampton City Council","http://opendatacommunities.org/id/metropolitan-district-council/wolverhampton","702249","C M Community Care Services Limited","DRYA06920171207","169.44","TPP - Home Care","190400554","08/12/2017","Older People Care Purchasing","OP Care Purchasing (Spot Placements)","R5420"
"Wolverhampton City Council","http://opendatacommunities.org/id/metropolitan-district-council/wolverhampton","702249","C M Community Care Services Limited","EWEB01420171207","197.68","TPP - Home Care","190400555","08/12/2017","Older People Care Purchasing","OP Care Purchasing (Spot Placements)","R5420"
"Wolverhampton City Council","http://opendatacommunities.org/id/metropolitan-district-council/wolverhampton","702249","C M Community Care Services Limited","EWEB01420171207","197.68","TPP - Home Care","190400555","08/12/2017","Older People Care Purchasing","OP Care Purchasing (Spot Placements)","R5420"
"Wolverhampton City Council","http://opendatacommunities.org/id/metropolitan-district-council/wolverhampton","702249","C M Community Care Services Limited","PWER00720171207","197.68","TPP - Home Care","190400561","08/12/2017","Older People Care Purchasing","OP Care Purchasing (Spot Placements)","R5420"
"Wolverhampton City Council","http://opendatacommunities.org/id/metropolitan-district-council/wolverhampton","702249","C M Community Care Services Limited","PWER00720171207","197.68","TPP - Home Care","190400561","08/12/2017","Older People Care Purchasing","OP Care Purchasing (Spot Placements)","R5420"
"Wolverhampton City Council","http://opendatacommunities.org/id/metropolitan-district-council/wolverhampton","702249","C M Community Care Services Limited","RDOD07820171213","197.68","TPP - Home Care","190402758","15/12/2017","Older People Care Purchasing","OP Care Purchasing (Spot Placements)","R5420"
"Wolverhampton City Council","http://opendatacommunities.org/id/metropolitan-district-council/wolverhampton","702249","C M Community Care Services Limited","ABAT01220171213","197.68","TPP - Home Care","190402747","15/12/2017","Older People Care Purchasing","OP Care Purchasing (Spot Placements)","R5420"
